Cogmind - Beta 9.1 *** ADVENTURER MODE // 2019.11.13 @ 05:18:16 Player: Suslik Result: Destroyed by Combat Programmer with EMDS Performance ------------- Evolutions (7) 3500 Regions Visited (34) 6800 Robots Destroyed (647) 3235 Value Destroyed (30762) 30762 Prototype IDs (79) 1580 Alien Tech Used (3) 600 Bonus (11722) 11722 TOTAL SCORE: 58199 Bonus ------- High Alert Combat Kills 1129 Follower Combat Kills 2228 Entered Garrisons 800 Used RIF Installer 2000 Network Hubs Disabled 800 Met Data Miner 300 Met Zhirov 300 Met R17 at Cetus 500 Met R17 at Research 2000 Scanned by Researcher 1000 Pursued by Intercept 500 Met Sigix 2000 Friendly Fire -1835 Cogmind --------- Core Integrity 0/1300 Matter 68/300 Energy 100/100 System Corruption 29% Temperature Cool (0) Location -3/Section 7 Parts ------- Power (2) Propulsion (2) Utility (15) High-capacity Storage Unit High-capacity Storage Unit High-capacity Storage Unit High-capacity Storage Unit High-capacity Storage Unit Experimental Signal Interpreter Advanced Core Analyzer Weapon (2) Inventory (44) Particle Reactor Centrium Wheel High-density Centrium Wheel High-density Centrium Wheel Advanced Coolant Injector High-capacity Storage Unit High-capacity Storage Unit High-capacity Storage Unit Improved Matter Compressor (300) Long-range Sensor Array Advanced Signal Interpreter Quantum Capacitor Nanoactuators Experimental Phase Shifter Experimental Phase Shifter Centrium Medium Armor Plating Heavy Reflective Plating EM Dispersion Field EM Dispersion Field Advanced Force Field Relay Coupler [NC] (40) Relay Coupler [NC] (39) System Restoration Module High-powered Tractor Beam Transdimensional Reconstructor Integrity Redistributor Integrity Redistributor Subatomic Replicator Stasis Generator Variable Charge Gun Dispersion Rifle Long-range Proton Cannon EMDS EMDS Cooled Phase Cannon Advanced EMP Blaster Advanced Remote Datajack Plasma Cutter Force Lance Plasma Lance Peak State ------------ Power Reinforced Antimatter Reactor Reinforced Antimatter Reactor Propulsion High-density Centrium Wheel High-density Centrium Wheel Utility Fusion Compressor High-capacity Storage Unit High-capacity Storage Unit High-capacity Storage Unit High-capacity Storage Unit High-capacity Storage Unit Experimental Signal Interpreter Advanced Core Analyzer Quantum Capacitor Phase Armor EM Dispersion Field Advanced Hacking Suite Relay Coupler [NC] Weapon EMDS Inventory Particle Reactor Centrium Wheel High-density Centrium Wheel High-density Centrium Wheel Advanced Coolant Injector High-capacity Storage Unit High-capacity Storage Unit High-capacity Storage Unit Improved Matter Compressor Long-range Sensor Array Advanced Signal Interpreter Quantum Capacitor Nanoactuators Experimental Phase Shifter Experimental Phase Shifter Centrium Medium Armor Plating Heavy Reflective Plating EM Dispersion Field Advanced Force Field Relay Coupler [NC] Relay Coupler [NC] System Restoration Module High-powered Tractor Beam Transdimensional Reconstructor Integrity Redistributor Integrity Redistributor Subatomic Replicator Stasis Generator Variable Charge Gun Dispersion Rifle Long-range Proton Cannon EMDS EMDS Cooled Phase Cannon Advanced EMP Blaster Advanced Remote Datajack Plasma Cutter Force Lance Plasma Lance [Rating: 165] Favorites ----------- Power Quantum Reactor Engine Heavy Ion Engine Power Core Fission Core Reactor Quantum Reactor Propulsion Armored Huge Wheel Treads Light Treads Leg Aluminum Leg Wheel Armored Huge Wheel Utility High-capacity Storage Unit Device Long-range Sensor Array Storage High-capacity Storage Unit Processor Experimental Signal Interpreter Hackware Advanced System Shield Protection Centrium Medium Armor Plating Artifact Phase Armor Weapon Power Sword Energy Gun Lightning Gun Energy Cannon Light EM Pulse Cannon Ballistic Gun High-powered Shotgun Ballistic Cannon Gauss Cannon Launcher Advanced EMP Blaster Special Weapon Improved Remote Datajack Impact Weapon Mace Slashing Weapon Power Sword Piercing Weapon Force Lance Special Melee Weapon Datajack Build | -11 -10 -10 -9 -9 -9 -8 -8 -8 -8 -8 -7 -7 -7 -7 -7 -7 -6 -6 -6 -6 -6 -5 -5 -5 -5 -4 -4 -4 -4 -4 -4 -3 -3 -3 ------- Run | Scr Mat Min Mat Min Exi Min Mat Gar Mat Gar Fac Was Fac Low Low Dat Pro Fac Gar Fac Gar Fac Upp Upp Zhi Pro Fac Ext Cet Arc Hub Res Qua Sec Slots Evolved 14 | . . . 2 . . . 2 . . . 2 . . . . . . 2 . . . 2 . . . . 2 . . . . 2 . . Power 1 | . . . . . . . . . . . . . . . . . . . . . . . . . . . . . . . . 1 . . Propulsion . | . . . . . . . . . . . . . . . . . . . . . . . . . . . . . . . . . . . Utility 13 | . . . 2 . . . 2 . . . 2 . . . . . . 2 . . . 2 . . . . 2 . . . . 1 . . Weapon . | . . . . . . . . . . . . . . . . . . . . . . . . . . . . . . . . . . . Parts Attached 928 | . 26 3 37 . 3 3 14 19 23 3 21 3 92 7 3 2 6 57 16 98 16 71 15 7 7 13 64 15 23 5 77 53 74 52 Power 30 | . 2 . 4 . . . 2 1 . . 1 . 1 . . . . 1 2 4 . 1 . . 1 . . . 1 . 1 4 4 . Engine 12 | . 1 . 4 . . . 2 1 . . 1 . 1 . . . . 1 . 1 . . . . . . . . . . . . . . Core 4 | . 1 . . . . . . . . . . . . . . . . . 1 2 . . . . . . . . . . . . . . Reactor 14 | . . . . . . . . . . . . . . . . . . . 1 1 . 1 . . 1 . . . 1 . 1 4 4 . Propulsion 45 | . 8 1 10 . . . 5 4 2 . 1 . 1 . . . . 1 . . . 1 . . . . 1 . . . 1 2 3 4 Treads 27 | . 6 . 10 . . . 5 4 2 . . . . . . . . . . . . . . . . . . . . . . . . . Leg . | . . . . . . . . . . . . . . . . . . . . . . . . . . . . . . . . . . . Wheel 18 | . 2 1 . . . . . . . . 1 . 1 . . . . 1 . . . 1 . . . . 1 . . . 1 2 3 4 Hover . | . . . . . . . . . . . . . . . . . . . . . . . . . . . . . . . . . . . Flight . | . . . . . . . . . . . . . . . . . . . . . . . . . . . . . . . . . . . Utility 430 | . 4 . 7 . 3 . 5 5 6 . 7 2 52 3 . . . 32 4 51 7 34 7 . 4 5 44 1 15 5 42 25 34 26 Device 166 | . . . . . . . 1 . . . 3 . 19 2 . . . 18 1 23 . 9 1 . . 2 13 1 3 4 15 13 20 18 Storage 40 | . 4 . 1 . 3 . 1 . . . 1 . 1 . . . . 2 . 5 . 1 1 . 1 . 2 . 2 . 4 1 8 2 Processor 7 | . . . . . . . . . . . . . 2 . . . . 1 . 1 . . . . . . . . . . . 1 . 2 Hackware 23 | . . . . . . . . 3 3 . 2 . 1 . . . . . 1 1 . 1 . . . . 4 . . . 4 1 2 . Protection 191 | . . . 6 . . . 3 2 3 . 1 2 29 1 . . . 11 2 21 7 23 5 . 3 3 25 . 10 1 19 9 3 2 Artifact 3 | . . . . . . . . . . . . . . . . . . . . . . . . . . . . . . . . . 1 2 Weapon 423 | . 12 2 16 . . 3 2 9 15 3 12 1 38 4 3 2 6 23 10 43 9 35 8 7 2 8 19 14 7 . 33 22 33 22 Energy Gun 101 | . 2 2 6 . . . . 2 1 . 4 . 16 2 . 1 2 8 2 18 4 14 1 2 . 3 5 . 1 . . 1 3 1 Energy Cannon 107 | . . . 4 . . . 1 . . . . . 4 . . . . 4 2 7 2 9 4 1 1 1 7 8 3 . 11 10 16 12 Ballistic Gun 27 | . 8 . 2 . . 2 1 2 4 . 2 . . . . . . 2 1 3 . . . . . . . . . . . . . . Ballistic Cannon 4 | . . . . . . . . . 1 1 1 . . . . . . 1 . . . . . . . . . . . . . . . . Launcher 58 | . 2 . 3 . . 1 . 4 5 1 . . 4 2 1 . 2 3 1 5 3 2 2 3 1 2 2 . 3 . 4 1 1 . Special Weapon 31 | . . . . . . . . . . . 1 . 1 . . . . . 3 3 . 3 . 1 . . 1 3 . . 7 3 2 3 Impact Weapon 3 | . . . . . . . . . . . . . 2 . . . . . . . . . . . . . . . . . . . 1 . Slashing Weapon 56 | . . . . . . . . . . . 2 1 10 . 2 1 2 5 1 7 . 7 1 . . 2 2 1 . . 9 3 . . Piercing Weapon 26 | . . . . . . . . . . . . . . . . . . . . . . . . . . . 2 2 . . 2 4 10 6 Special Melee Weapon 10 | . . . 1 . . . . 1 4 1 2 . 1 . . . . . . . . . . . . . . . . . . . . . Unidentified Prototypes 28 | . . . 2 . . . . . 1 . 1 . 3 1 . . . 3 . 1 . . . . 4 . . . 2 . 5 1 2 2 Parts Lost 41 | . 2 1 3 . . 2 1 1 1 . 1 . 2 . . . . 1 1 4 2 . . . . 1 3 . 1 . 2 3 3 6 Power 5 | . . . . . . . . . . . . . . . . . . . 1 1 . . . . . . . . 1 . . . . 2 Propulsion 3 | . 1 1 1 . . . . . . . . . . . . . . . . . . . . . . . . . . . . . . . Utility 17 | . . . . . . . 1 . 1 . . . . . . . . 1 . 2 2 . . . . . . . . . 1 3 3 3 Weapon 16 | . 1 . 2 . . 2 . 1 . . 1 . 2 . . . . . . 1 . . . . . 1 3 . . . 1 . . 1 Highest Loss Streak 6 | . 1 1 1 . . 1 1 1 1 . 1 . 1 . . . . 1 1 1 2 . . . . 1 1 . 1 . 1 2 2 6 Average Slot Usage (%) 90 | . 97 100 99 100 100 99 92 98 100 100 89 79 87 83 84 69 84 86 93 89 92 87 87 88 76 88 85 87 88 89 85 94 92 84 Engine 3 | . 13 14 11 11 11 11 8 9 9 9 6 7 7 7 7 7 7 5 3 . . . . . . . . . . . . . . . Reactor 2 | . . . . . . . . . . . . . . . . . . . . . . 2 5 5 5 5 5 5 5 5 5 9 9 8 Treads 4 | . 26 19 21 22 22 22 17 18 18 18 . . . . . . . . . . . . . . . . . . . . . . . . Wheel 4 | . . 8 . . . . . . . . 6 7 7 7 7 7 7 6 6 6 6 5 5 5 5 5 5 5 5 5 5 6 8 8 Device 7 | . . . . . . . 1 . . . 4 1 5 6 7 7 7 12 13 14 6 10 10 11 11 9 12 10 6 7 8 13 11 12 Storage 29 | . 27 28 22 33 33 33 29 36 36 36 37 31 30 30 30 30 30 32 33 33 33 29 29 29 29 29 26 26 26 26 26 23 25 25 Processor 4 | . . . . . . . . . . . . . 7 7 7 7 7 6 6 6 6 5 5 5 5 5 5 5 5 5 5 6 6 7 Hackware 3 | . . . . . . . . 2 5 9 7 7 . . . . . . 3 1 . . . . . . 2 10 10 10 14 4 8 8 Protection 12 | . . . 21 11 11 11 19 14 12 9 6 6 11 6 7 7 7 8 9 7 18 16 16 17 16 18 16 15 18 18 9 20 9 1 Energy Gun 4 | . 5 26 15 22 22 11 . . 1 . 4 . 6 10 9 . 12 2 5 5 6 3 1 1 . 2 1 . . . . . . . Energy Cannon 2 | . . . 1 . . . 5 . . . . . 2 . . . . 2 3 1 3 2 4 3 . 1 3 4 1 5 2 3 1 1 Ballistic Gun 1 | . 21 1 3 . . 10 8 12 6 5 2 . . . . . . . . . . . . . . . . . . . . . . . Slashing Weapon 2 | . . . . . . . . . . . . 6 4 3 4 . 2 5 2 4 . 3 3 1 . 3 1 1 5 5 4 2 . . Naked Turns . | . . . . . . . . . . . . . . . . . . . . . . . . . . . . . . . . . . . Heaviest Build 313 | 11 73 73 99 99 115 115 155 157 161 152 187 187 192 165 165 162 163 225 202 236 210 256 250 238 238 254 278 250 253 243 255 282 313 293 Greatest Support 40 | 20 40 40 40 40 40 40 40 40 40 40 40 28 28 28 28 28 28 28 28 28 28 28 28 28 28 28 28 28 28 28 28 32 32 40 Greatest Overweight (x) 69 | . 7 7 7 2 2 2 5 3 4 3 6 6 6 5 5 5 5 8 7 8 7 9 8 8 8 9 9 8 9 8 9 16 9 69 Average Overweight (x) 6 | . 1 4 2 2 2 2 2 3 3 3 5 5 5 5 5 5 5 6 6 6 6 7 7 8 7 8 8 8 8 8 8 8 7 8 Largest Inventory Capacity 52 | . 20 20 26 26 28 28 36 36 36 36 44 44 44 36 36 36 36 48 44 44 44 44 44 44 44 44 50 44 44 44 44 52 52 44 Average Capacity 38 | . 18 20 20 26 26 28 30 36 36 36 43 37 36 36 36 36 36 43 44 44 44 44 44 44 44 44 44 44 44 44 44 44 44 44 Most Carried 44 | . 14 19 21 24 27 28 31 36 36 36 41 39 38 36 34 36 34 44 44 44 44 44 44 44 44 44 44 44 44 44 44 44 44 44 Average Carried 37 | . 10 17 19 23 24 27 27 34 35 35 38 36 34 34 34 35 34 42 43 43 42 42 43 44 43 43 42 43 43 43 43 43 42 43 Final Capacity 44 | 6 20 20 26 26 28 28 36 36 36 36 44 36 36 36 36 36 36 44 44 44 44 44 44 44 44 44 44 44 44 44 44 44 44 44 Final Carried 44 | 6 12 19 21 24 27 28 31 36 35 35 39 36 34 34 34 34 34 44 43 44 43 44 44 44 44 43 43 43 44 44 44 41 43 44 Class Distribution -------------------- 46% | Hauler-Mutant 28% | Bothacker-Mutant 9% | Hauler-Assassin 7% | Botlord-Assassin 4% | Botlord-Mutant Dominant Class ---------------- Hauler-Mutant | -10/Materials Hauler-Mutant | -10/Mines Hauler-Mutant | -9/Materials Hauler-Mutant | -9/Mines Hauler-Mutant | -9/Exiles Hauler-Mutant | -8/Mines Hauler-Mutant | -8/Materials Bothacker-Mutant | -8/Garrison Bothacker-Mutant | -8/Materials Bothacker-Mutant | -8/Garrison Bothacker-Mutant | -7/Factory Bothacker-Mutant | -7/Waste Hauler-Mutant | -7/Factory Hauler-Mutant | -7/Lower Caves Hauler-Mutant | -7/Lower Caves Hauler-Mutant | -7/Data Miner Hauler-Mutant | -6/Proximity Caves Hauler-Assassin | -6/Factory Bothacker-Mutant | -6/Garrison Hauler-Assassin | -6/Factory Hauler-Mutant | -6/Garrison Bothacker-Mutant | -5/Factory Bothacker-Mutant | -5/Upper Caves Bothacker-Mutant | -5/Upper Caves Bothacker-Mutant | -5/Zhirov Bothacker-Mutant | -4/Proximity Caves Botlord-Mutant | -4/Factory Botlord-Assassin | -4/Extension Botlord-Mutant | -4/Cetus Botlord-Mutant | -4/Archives Bothacker-Mutant | -4/Hub_04(d) Hauler-Assassin | -3/Research Hauler-Mutant | -3/Quarantine Hauler-Mutant | -3/Section 7 Resources | -11 -10 -10 -9 -9 -9 -8 -8 -8 -8 -8 -7 -7 -7 -7 -7 -7 -6 -6 -6 -6 -6 -5 -5 -5 -5 -4 -4 -4 -4 -4 -4 -3 -3 -3 ----------- Run | Scr Mat Min Mat Min Exi Min Mat Gar Mat Gar Fac Was Fac Low Low Dat Pro Fac Gar Fac Gar Fac Upp Upp Zhi Pro Fac Ext Cet Arc Hub Res Qua Sec Matter Collected 15957 | 200 429 206 480 10 . 123 183 352 651 89 243 97 1199 196 20 . 136 640 294 1206 441 748 272 169 250 285 724 355 408 76 1037 1694 1461 1283 Remotely 1099 | . . . . . . . . . . . . . . . . . . . . . . . . . . . . . . . . 632 467 . Salvage Created 33129 | . 631 88 1548 587 . 466 347 611 649 195 276 . 2613 204 117 . 131 982 631 2375 631 1717 696 738 . 575 2591 679 1212 420 4987 2217 2022 2193 Parts 1461 | . 39 7 114 17 . 34 18 20 42 17 16 . 123 10 10 . 13 48 29 114 20 82 21 32 . 20 101 19 39 16 213 63 83 81 Haulers Intercepted 18 | . 1 . 5 . . . 1 . 1 . 2 . 2 . . . . . . 1 . 2 . . . . 1 . . . 2 . . . Recyclers Shooed 24 | . 1 . 1 . . . 1 . 1 . 1 . 11 . . . . 1 . 1 . 1 . . . . 3 . . . . . . 2 Parts Field Recycled . | . . . . . . . . . . . . . . . . . . . . . . . . . . . . . . . . . . . Retrieved Matter . | . . . . . . . . . . . . . . . . . . . . . . . . . . . . . . . . . . . Parts Self-Destructed 38 | . . . . . . . . . . . . . . 3 7 . 7 . . . . . 7 8 . 6 . . . . . . . . Prevented 53 | . . . . . . . . . . . . . . 4 3 . 3 . . . . . 13 20 . 10 . . . . . . . . Kills | -11 -10 -10 -9 -9 -9 -8 -8 -8 -8 -8 -7 -7 -7 -7 -7 -7 -6 -6 -6 -6 -6 -5 -5 -5 -5 -4 -4 -4 -4 -4 -4 -3 -3 -3 ------- Run | Scr Mat Min Mat Min Exi Min Mat Gar Mat Gar Fac Was Fac Low Low Dat Pro Fac Gar Fac Gar Fac Upp Upp Zhi Pro Fac Ext Cet Arc Hub Res Qua Sec Combat Hostiles Destroyed 503 | . 15 6 34 6 . 14 4 11 19 6 4 . 34 6 4 . 7 16 11 28 12 24 10 12 . 13 35 9 18 4 56 33 29 23 Melee 64 | . . . . . . . . . . . 1 . 4 . . . . 2 3 1 . . 2 . . . 13 4 . . 24 . 5 5 Guns 107 | . 10 6 23 6 . 9 2 1 3 1 1 . 16 . . . 1 1 1 7 2 10 1 . . 1 3 . . . . 1 1 . Cannons 73 | . . . 1 . . . 2 . 4 2 2 . 3 . . . . 2 . 6 1 2 . 1 . . 8 4 1 . 9 8 11 6 AOE 139 | . 5 . 9 . . 5 . 7 12 3 . . 6 6 4 . 6 7 3 9 4 5 4 4 . 9 3 . 10 . 11 2 4 1 Classes Destroyed 22 | . 4 1 4 . . 1 . . 1 . 1 . 1 . . . . . . 1 1 . . . . . . . . . 1 3 2 1 Worker 38 | . . . 2 4 . . 1 . 5 . . . 6 . . . . 2 . 3 . 1 . . . . 2 . . . 8 . 3 1 Builder 27 | . . . . . . . . . . . 1 . 5 . . . . 2 . 6 . 5 . . . . 2 . . . 4 . 1 1 Tunneler 1 | . . . . . . 1 . . . . . . . . . . . . . . . . . . . . . . . . . . . . Hauler 18 | . 1 . 5 . . . 1 . 1 . 2 . 2 . . . . . . 1 . 2 . . . . 1 . . . 2 . . . Recycler 20 | . 1 . . 1 . 2 1 . . . . . 6 . . . . . . 3 . . . . . . 3 . . . 1 . . 2 Operator 4 | . . . 1 . . . . . . . . . 1 . . . . . . . . . . . . . . 1 . . 1 . . . Watcher 27 | . 2 . 4 . . . . . 2 . . . 5 . . . . 1 . 1 . 2 . . . . 2 1 1 . 3 . 3 . Swarmer 120 | . . 6 13 3 . 11 . . 7 3 . . 6 3 4 . 7 3 4 3 3 3 . 2 . 8 11 2 6 . 4 5 3 . Grunt 168 | . 15 . 12 3 . 3 2 8 11 3 4 . 11 3 . . . 5 2 14 6 5 7 5 . 4 7 4 5 . 12 5 6 6 Brawler 5 | . . . . . . . . . . . . . . . . . . . . 2 . 1 . 1 . . . . . . . . . 1 Duelist 7 | . . . 1 . . . . . . . . . 1 . . . . . 3 1 . . . . . . 1 . . . . . . . Protector 4 | . . . . . . . . . . . . . . . . . . . . . . . . . . . . . . . 4 . . . Researcher 2 | . . . . . . . . . . . . . . . . . . . . . . . . . . . . . . . . . 2 . Sentry 56 | . . . 8 . . . 2 3 1 . . . 5 . . . . 2 3 2 . 1 1 1 . 1 4 3 . 4 5 4 . 6 Demolisher 4 | . . . . . . . . . . . . . . . . . . . . . . . . . . . . . . . . 4 . . Specialist 1 | . . . . . . . . . . . . . . . . . . . . . 1 . . . . . . . . . . . . . Hunter 44 | . . . . . . . . . 1 . . . 3 . . . . 2 . . 1 3 . 3 . . 2 . 2 . 13 4 8 2 Programmer 67 | . . . . . . . . . . . . . 8 . . . . 4 . 6 1 11 2 . . . 10 . . . 10 1 11 3 Q-Series 2 | . . . . . . . . . . . . . . . . . . . . . . . . . . . . . . . . . 1 1 Behemoth 1 | . . . . . . . . . . . . . . . . . . . . . . . . . . . . . . . . . . 1 Cetus Guard 5 | . . . . . . . . . . . . . . . . . . . . . . . . . . . . . 5 . . . . . Lightning 12 | . . . . . . . . . . . . . . . . . . . . . . . . . . . . . . . 12 . . . Tracker 2 | . . . . . . . . . . . . . . . . . . . . . . . . . . . . . . . . . . 2 Combat Programmer 1 | . . . . . . . . . . . . . . . . . . . . . . . . . . . . . . . . . . 1 Striker 8 | . . . . . . . . . . . . . . . . . . . . . . . . . . . . . . . . 8 . . Executioner 2 | . . . . . . . . . . . . . . . . . . . . . . . . . . . . . . . . 2 . . Butcher 1 | . . . . . . . . . . . . . . . . . . . . . . . . . . . . . 1 . . . . . Best Kill Streak 14 | . 4 3 6 3 . 4 3 5 6 3 2 . 12 3 4 . 4 9 9 10 5 7 4 4 . 4 9 3 7 3 14 9 7 6 Combat Bots Only 11 | . 3 3 5 3 . 4 3 5 5 3 1 . 6 3 4 . 4 6 9 4 5 6 4 4 . 4 7 3 6 3 11 9 5 5 Max Kills in Single Turn 7 | . 2 2 4 2 . 4 1 3 2 2 1 . 3 2 3 . 3 3 2 4 2 7 2 2 . 3 5 1 3 1 4 2 2 2 Gunslinging 1 | . . 1 1 1 . 1 . . . . . . . . . . . . . . . . . . . . . . . . . . . . Exploded 4 | . 2 . 3 . . 4 . 3 2 2 . . 2 2 3 . 3 2 1 1 2 3 2 1 . 3 3 . 3 . 3 2 2 1 Melee 1 | . . . . . . . . . . . 1 . 1 . . . . 1 1 1 . . 1 . . . 1 1 . . 1 . 1 1 Uniques/NPCs Destroyed . | . . . . . . . . . . . . . . . . . . . . . . . . . . . . . . . . . . . Combat | -11 -10 -10 -9 -9 -9 -8 -8 -8 -8 -8 -7 -7 -7 -7 -7 -7 -6 -6 -6 -6 -6 -5 -5 -5 -5 -4 -4 -4 -4 -4 -4 -3 -3 -3 -------- Run | Scr Mat Min Mat Min Exi Min Mat Gar Mat Gar Fac Was Fac Low Low Dat Pro Fac Gar Fac Gar Fac Upp Upp Zhi Pro Fac Ext Cet Arc Hub Res Qua Sec Damage Taken 22490 | . 648 107 784 107 . 296 131 520 578 57 271 16 1236 90 . . 121 577 530 1289 767 833 303 397 . 483 1955 333 596 185 2075 1672 1705 3828 Core 2785 | . 83 39 75 14 . 40 . 57 20 17 59 16 261 . . . . 67 143 110 89 10 . 51 . . 138 38 24 18 100 275 22 1019 Absorbed by Shields 1031 | . . . . . . . . . . . . . 40 . . . . . . . . . . . . . . 34 . . . 280 428 249 Redirected to Core 124 | . . . . . . . . . . . . . . . . . . . . . . . . . . . . . . . . . 15 109 Core Remaining (%) 71 | 100 . 51 . . . 67 . . . 82 . . . . . . 52 . . . 51 . . . . 93 . . . . 72 . . . Volleys Fired 1395 | . 59 7 82 31 . 18 16 36 51 9 11 9 128 7 2 . 5 39 26 92 42 74 15 18 . 12 88 55 36 19 111 93 119 85 Largest 2 | . 2 2 2 2 . 2 2 2 2 2 2 1 2 1 1 . 2 2 2 2 2 2 2 2 . 2 2 1 1 1 1 1 2 1 Hottest 176 | . 60 80 108 90 . 90 93 70 103 76 104 30 133 36 36 . 110 111 118 150 150 150 116 135 . 135 150 110 88 88 90 105 176 81 Shots Fired 1902 | . 111 14 158 62 . 35 31 45 85 14 22 9 195 7 3 . 7 51 43 127 72 135 16 20 . 18 99 55 36 19 111 93 124 85 Gun 916 | . 104 14 142 62 . 34 16 24 35 6 11 . 149 . 1 . 4 29 24 71 41 98 3 1 . 6 27 . . . . 4 10 . Cannon 687 | . . . 10 . . . 15 . 33 5 11 . 36 . . . . 14 10 33 19 27 1 2 . 4 68 34 12 19 78 80 95 81 Launcher 211 | . 7 . 6 . . 1 . 21 17 3 . . 5 7 2 . 3 8 4 19 12 5 12 16 . 8 1 . 24 . 16 1 13 . Special 88 | . . . . . . . . . . . . 9 5 . . . . . 5 4 . 5 . 1 . . 3 21 . . 17 8 6 4 Kinetic 263 | . 95 3 32 . . 15 16 18 54 11 15 . . . . . . 4 . . . . . . . . . . . . . . . . Thermal 436 | . 9 3 10 . . . 15 . 14 . 7 . 107 . . . . 12 . 47 18 74 . . . . 21 17 . . 15 9 58 . Explosive 37 | . 7 . 6 . . 1 . . 13 . . . 1 3 . . 2 . . . . . . . . 2 1 . . . 1 . . . Electromagnetic 1078 | . . 8 110 62 . 19 . 27 4 3 . . 82 4 3 . 5 35 38 76 54 56 16 19 . 16 74 17 36 19 78 76 60 81 Robot Hit Streak 73 | . 22 24 23 23 . 10 15 21 19 12 15 20 73 . . . 4 34 13 31 33 38 12 21 . 9 18 16 10 7 13 28 38 16 Robot Miss Streak 4 | . 1 1 3 4 . 4 2 1 3 1 1 1 3 . . . . 2 1 2 2 2 . 1 . 2 3 2 2 2 3 3 2 2 Penetration Max 1 | . . . . . . . . . 1 1 . . . . . . . . . . . . . . . . . . . . . 1 1 1 Secondary Targets 14 | . 1 2 5 1 . 3 . . . . . . . . . . . . . . . 1 . . . . 1 . . . . . . . Max Gunslinging Chain 1 | . 1 1 1 1 . 1 . . . . . . . . . . . . . . . 1 . . . . 1 . . . . . . . Capacitor 127 | . . . . . . . . . . . . . . . . . . . . . . . . . . . 11 . . 13 . 7 20 76 Shots Hit Robots 1729 | . 87 12 124 55 . 28 26 28 59 11 26 9 182 . . . 4 56 39 115 51 119 16 10 . 13 114 49 17 15 191 72 123 78 Core Hits 998 | . 41 7 76 48 . 25 10 15 56 9 8 1 84 10 4 . 8 29 15 75 17 54 14 15 . 16 53 15 34 2 139 29 51 38 Critical Hits 64 | . . . 1 . . 1 1 . 4 . 2 . . . . . . 3 . 2 . . . . . . 6 2 . . 7 13 8 14 Critical Kills 21 | . . . . . . . . . 1 . . . . . . . . . . 2 . . . . . . 4 2 . . 3 2 3 4 Critical Parts Destroyed 36 | . . . 1 . . 1 1 . 2 . 2 . . . . . . 3 . . . . . . . . 2 . . . 4 8 5 7 Melee Attacks 729 | . . . 1 . . . . 9 4 1 14 2 102 1 3 . 2 50 9 65 3 50 6 . . 3 113 19 . . 149 23 63 37 Impact 9 | . . . . . . . . . . . . . 9 . . . . . . . . . . . . . . . . . . . . . Slashing 438 | . . . . . . . . . . . 13 2 92 1 3 . 2 50 9 65 3 50 6 . . 3 45 6 . . 70 18 . . Piercing 265 | . . . . . . . . . . . . . . . . . . . . . . . . . . . 68 13 . . 79 5 63 37 Sneak Attacks 31 | . . . 1 . . . . 3 . . . 2 11 . . . . 1 . 2 . 1 . . . . 3 2 . . 2 2 1 . Combat Hostiles 5 | . . . 1 . . . . 1 . . . 2 . . . . . . . . . . . . . . . 1 . . . . . . Follow-up Attacks 19 | . . . . . . . . . . . . . . . . . . 1 . . . . . . . . . . . . 18 . . . Damage Inflicted 69675 | . 1515 207 2676 917 . 833 621 1267 2745 318 653 86 6387 425 86 . 368 2239 1103 4355 1613 3790 1208 1203 . 1099 5164 1324 2532 479 10860 3705 6547 3350 Guns 14254 | . 1000 138 1636 794 . 482 266 257 515 147 185 . 2750 . . . 34 503 420 1342 747 2138 60 23 . 60 458 . . . . 80 219 . Cannons 20747 | . . . 123 . . . 266 . 598 108 215 . 713 . . . . 404 193 1002 342 540 . 31 . 105 2287 746 442 479 2296 3106 4245 2506 Explosions 22092 | . 493 69 859 122 . 195 . 1010 1588 63 . . 1252 425 86 . 334 887 390 1586 484 956 939 1149 . 934 1091 . 2090 . 3899 309 709 173 Melee 12148 | . . . . . . . . . . . 240 86 1639 . . . . 445 82 425 40 156 209 . . . 1328 578 . . 4665 210 1374 671 Ramming 434 | . 22 . 58 1 . 156 89 . 44 . 13 . 33 . . . . . 18 . . . . . . . . . . . . . . . Kinetic 3392 | . 915 27 219 . . 263 266 189 933 255 301 . . . . . . 24 . . . . . . . . . . . . . . . . Thermal 15294 | . 85 105 264 122 . 59 266 55 180 . 99 . 2828 . . . . 540 232 1706 631 2098 61 40 . 66 1322 238 372 . 1225 342 2185 173 Explosive 4195 | . 493 . 718 . . 136 . . 1359 . . . 228 210 . . 254 . . . . . . . . 322 232 . . . 243 . . . Electromagnetic 34212 | . . 75 1417 794 . 219 . 1023 229 63 . . 1659 215 86 . 114 1230 771 2224 942 1536 938 1163 . 711 2282 508 2160 479 4727 3153 2988 2506 Impact . | . . . . . . . . . . . . . . . . . . . . . . . . . . . . . . . . . . . Slashing 6413 | . . . . . . . . . . . 240 86 1639 . . . . 445 82 425 40 156 209 . . . 503 405 . . 1973 210 . . Piercing 5735 | . . . . . . . . . . . . . . . . . . . . . . . . . . . 825 173 . . 2692 . 1374 671 Highest Corruption 28 | . . . . . . . . 1 1 1 5 12 12 12 12 12 12 1 1 4 5 2 2 4 4 5 2 4 4 4 4 4 . 28 Average Corruption 4 | . . . . . . . . 1 1 1 4 11 12 12 12 12 12 1 1 3 4 1 2 3 4 4 1 2 4 4 3 1 . 13 Corruption Purged 8 | . . . . . . . . . . . . . . . . . . . . . . . . . . . . . . . 4 4 . . Effects 531 | . . . . . . . . 3 10 1 22 10 177 25 24 8 26 7 . 52 25 6 9 17 8 22 29 20 10 3 13 1 . 3 Message Errors 128 | . . . . . . . . 1 5 . 5 2 35 4 7 . 5 3 . 13 4 2 5 3 1 6 14 5 3 . 4 . . 1 Matter Fused 81 | . . . . . . . . . . . 2 1 24 8 6 3 2 . . 9 8 . . 3 3 4 . 4 2 1 1 . . . Heat Flow Errors 63 | . . . . . . . . . . . 4 . 16 4 2 1 . . . 12 1 . 2 3 1 5 3 4 3 1 1 . . . Energy Discharges 56 | . . . . . . . . 1 1 . 3 3 20 . 2 . . 1 . 7 3 1 2 3 2 2 1 3 . . 1 . . . Parts Rejected 8 | . . . . . . . . . . . 1 1 3 . . . . . . . 1 . . . . . . . 1 . . . . 1 Data Loss (minor) 61 | . . . . . . . . 1 2 1 3 1 6 2 2 1 8 2 . 7 2 2 . 4 1 3 5 2 1 1 4 . . . Data Loss (major) 15 | . . . . . . . . . . . 1 . 7 1 1 . 3 . . . 1 . . . . . . . . . . . . 1 Misfires 15 | . . . . . . . . . . . 1 . 9 . 1 . . . . . 2 . . . . 2 . . . . . . . . Alerts 9 | . . . . . . . . . . . . 1 4 . 1 . 3 . . . . . . . . . . . . . . . . . Misdirections 35 | . . . . . . . . . . . . . 23 4 2 3 3 . . . . . . . . . . . . . . . . . Targeting Errors 56 | . . . . . . . . . 2 . 1 1 29 2 . . 2 1 . 4 3 1 . 1 . . 4 2 . . 2 1 . . Weapon Failures 4 | . . . . . . . . . . . 1 . 1 . . . . . . . . . . . . . 2 . . . . . . . Overload Shots 10 | . . . . . . . . . . . . . 10 . . . . . . . . . . . . . . . . . . . . . Effects 1 | . . . . . . . . . . . . . 1 . . . . . . . . . . . . . . . . . . . . . Energy Bleed 1 | . . . . . . . . . . . . . 1 . . . . . . . . . . . . . . . . . . . . . Overflow Damage 2944 | . 10 6 57 10 . 6 . 58 127 . 3 . 693 . . . 37 53 . 149 56 23 14 20 . 8 431 82 69 . 495 99 314 124 Projectiles 777 | . . . . . . . . . 3 . . . 11 . . . . 33 . 35 . 1 . . . 3 93 67 62 . 75 21 249 124 Explosions 1172 | . 10 6 57 10 . 6 . 58 111 . . . 183 . . . 37 . . 46 56 22 14 20 . 5 259 . 7 . 265 . . . Melee 995 | . . . . . . . . . 13 . 3 . 499 . . . . 20 . 68 . . . . . . 79 15 . . 155 78 65 . Knockbacks 8 | . . . 1 . . 2 2 . 3 . . . . . . . . . . . . . . . . . . . . . . . . . Impact 5 | . . . 1 . . 2 2 . . . . . . . . . . . . . . . . . . . . . . . . . . . Kinetic 3 | . . . . . . . . . 3 . . . . . . . . . . . . . . . . . . . . . . . . . Secondary . | . . . . . . . . . . . . . . . . . . . . . . . . . . . . . . . . . . . Self-Inflicted Damage 1367 | . . 26 16 28 . 53 . 135 . . 6 . 243 70 . . 9 49 60 136 137 43 20 74 . 88 56 . . . 45 52 21 . Shots 63 | . . 1 1 1 . 3 . 8 . . . . 5 2 . . 1 3 2 6 9 2 1 4 . 6 1 . . . 1 1 5 . Rammed 34 | . 5 . 7 1 . 11 4 . 2 . 1 . 2 . . . . . 1 . . . . . . . . . . . . . . . Targets Rammed 36 | . 5 . 7 1 . 12 5 . 2 . 1 . 2 . . . . . 1 . . . . . . . . . . . . . . . Kicked . | . . . . . . . . . . . . . . . . . . . . . . . . . . . . . . . . . . . Crushed 2 | . . . . . . 1 1 . . . . . . . . . . . . . . . . . . . . . . . . . . . Highest Temperature 437 | . 52 84 402 352 . 216 215 108 297 93 271 34 384 222 248 158 90 315 17 437 207 290 197 253 61 119 190 258 248 336 209 208 363 336 Average Temperature 85 | . 12 44 100 125 . 77 78 34 60 46 69 13 100 94 100 84 46 86 5 115 64 86 87 86 41 57 67 53 70 127 26 44 152 112 Received Heat Transfer 4210 | . 465 . 258 27 . 99 72 225 243 36 144 9 357 . . . . 189 96 531 234 234 129 81 . 42 177 17 9 36 282 46 96 76 Effects 18 | . . . 3 2 . . . . 2 . . . 5 . . . . . . 2 . 3 . . . . . . . 1 . . . . Shutdowns 5 | . . . 2 . . . . . . . . . 1 . . . . . . 2 . . . . . . . . . . . . . . Energy Bleed 9 | . . . 1 2 . . . . . . . . 2 . . . . . . . . 3 . . . . . . . 1 . . . . Interference 4 | . . . . . . . . . 2 . . . 2 . . . . . . . . . . . . . . . . . . . . . Siege Activations . | . . . . . . . . . . . . . . . . . . . . . . . . . . . . . . . . . . . Robots Corrupted 129 | . . . 1 . . . . 3 . . . . 3 . . . . 5 4 6 5 4 3 7 . 3 11 1 8 4 17 22 10 12 Combat Hostiles 115 | . . . 1 . . . . 3 . . . . 3 . . . . 4 4 5 5 4 3 7 . 3 8 1 7 4 12 22 8 11 Parts Fried 285 | . . . 8 3 . . . 6 1 . . . 11 1 . . . 9 9 11 7 13 9 5 . 8 35 10 16 4 42 32 27 18 Impact Corruptions 1 | . . . . . . . . . 1 . . . . . . . . . . . . . . . . . . . . . . . . . Robots Melted 5 | . . . . . . . . . . . . . 2 . . . . . . . . 3 . . . . . . . . . . . . Combat Hostiles 5 | . . . . . . . . . . . . . 2 . . . . . . . . 3 . . . . . . . . . . . . Parts Melted 57 | . . . 1 . . . . . 2 . 2 . 7 . . . . 1 . 5 4 26 . . . . 5 . . . 3 1 . . Heat Transferred 20285 | . 200 225 422 200 . 50 481 100 370 . 222 . 4195 . . . . 874 200 2450 1100 3650 . 50 . 50 1250 300 350 . 1300 311 1735 200 Parts Sabotaged . | . . . . . . . . . . . . . . . . . . . . . . . . . . . . . . . . . . . Parts Stolen . | . . . . . . . . . . . . . . . . . . . . . . . . . . . . . . . . . . . Parts Stripped . | . . . . . . . . . . . . . . . . . . . . . . . . . . . . . . . . . . . Power Chain Reactions 62 | . . 1 3 1 . 2 . 2 . 1 . . 4 . . . . 4 2 13 3 5 1 1 . 1 . . 4 . 10 2 . 2 Missiles Intercepted . | . . . . . . . . . . . . . . . . . . . . . . . . . . . . . . . . . . . Alert | -11 -10 -10 -9 -9 -9 -8 -8 -8 -8 -8 -7 -7 -7 -7 -7 -7 -6 -6 -6 -6 -6 -5 -5 -5 -5 -4 -4 -4 -4 -4 -4 -3 -3 -3 ------- Run | Scr Mat Min Mat Min Exi Min Mat Gar Mat Gar Fac Was Fac Low Low Dat Pro Fac Gar Fac Gar Fac Upp Upp Zhi Pro Fac Ext Cet Arc Hub Res Qua Sec Peak Influence 834 | . 247 171 274 224 . 176 230 503 654 537 266 823 710 . . . . 216 253 236 349 554 . . . . 834 273 366 186 527 580 388 431 Average Influence 164 | . 84 48 132 62 . 73 122 323 359 424 133 239 269 . . . . 84 144 71 230 135 . . . . 361 100 123 157 170 114 76 115 Maximum Alert Level 3 | . 1 . 1 1 . . 1 2 2 2 1 3 3 . . . . 1 1 1 1 2 . . . . 3 1 1 . 2 2 1 2 Low Security (%) 69 | . . . . . . . . . . . . . . . . . . . . . . . . . . . . . . . . . . . Level 1 19 | . . . . . . . . . . . . . . . . . . . . . . . . . . . . . . . . . . . Level 2 9 | . . . . . . . . . . . . . . . . . . . . . . . . . . . . . . . . . . . Level 3 1 | . . . . . . . . . . . . . . . . . . . . . . . . . . . . . . . . . . . Level 4 . | . . . . . . . . . . . . . . . . . . . . . . . . . . . . . . . . . . . Level 5 . | . . . . . . . . . . . . . . . . . . . . . . . . . . . . . . . . . . . High Security . | . . . . . . . . . . . . . . . . . . . . . . . . . . . . . . . . . . . Max Security . | . . . . . . . . . . . . . . . . . . . . . . . . . . . . . . . . . . . Squads Dispatched 110 | . 4 . 3 . . 1 2 . 4 . 5 . 16 . . . . 7 . 11 . 7 . . . . 12 4 1 . 12 2 9 10 Investigation 23 | . 4 . 2 . . . . . 1 . 2 . 4 . . . . 3 . 1 . 1 . . . . 2 1 1 . 1 . . . Extermination 38 | . . . . . . . . . . . 1 . 7 . . . . 3 . 6 . 4 . . . . 5 . . . 5 . 5 2 Reinforcement 36 | . . . 1 . . 1 1 . 1 . 2 . 5 . . . . 1 . 4 . 1 . . . . 2 3 . . 6 2 4 2 Assault 4 | . . . . . . . . . . . . . . . . . . . . . . 1 . . . . 3 . . . . . . . Garrison 3 | . . . . . . . 1 . 2 . . . . . . . . . . . . . . . . . . . . . . . . . Intercept 6 | . . . . . . . . . . . . . . . . . . . . . . . . . . . . . . . . . . 6 Construction Impeded 14 | . . . 1 . . 1 . . 1 . . . 3 . . . . 1 . 2 . 1 . . . . 1 . . . 2 . 1 . Haulers Reinforced 5 | . . . . . . . . . . . 1 . . . . . . . . 1 . . . . . . . . . . 2 1 . . Stealth | -11 -10 -10 -9 -9 -9 -8 -8 -8 -8 -8 -7 -7 -7 -7 -7 -7 -6 -6 -6 -6 -6 -5 -5 -5 -5 -4 -4 -4 -4 -4 -4 -3 -3 -3 --------- Run | Scr Mat Min Mat Min Exi Min Mat Gar Mat Gar Fac Was Fac Low Low Dat Pro Fac Gar Fac Gar Fac Upp Upp Zhi Pro Fac Ext Cet Arc Hub Res Qua Sec Distress Signals 46 | . . . 3 . . . 1 . 6 . . . 3 . . . . 1 . 3 . 1 . . . . 1 2 2 . 5 13 4 1 Communications Jammed . | . . . . . . . . . . . . . . . . . . . . . . . . . . . . . . . . . . . Distress Signals . | . . . . . . . . . . . . . . . . . . . . . . . . . . . . . . . . . . . Times Spotted 723 | . 18 5 44 8 . 16 9 26 42 9 9 4 56 4 . . 7 18 16 34 16 40 12 11 . 13 41 34 30 4 80 44 41 32 Peak Tracking Total 11 | . 3 3 6 4 . 4 3 5 4 2 2 2 3 3 . . 3 6 11 5 5 6 4 4 . 4 6 7 8 1 8 6 6 5 Tactical Retreats 44 | . 1 . 1 1 . . . 4 2 . 3 . 3 . . . . . 1 1 3 1 2 1 . . 4 2 . . 4 4 6 . Traps | -11 -10 -10 -9 -9 -9 -8 -8 -8 -8 -8 -7 -7 -7 -7 -7 -7 -6 -6 -6 -6 -6 -5 -5 -5 -5 -4 -4 -4 -4 -4 -4 -3 -3 -3 ------- Run | Scr Mat Min Mat Min Exi Min Mat Gar Mat Gar Fac Was Fac Low Low Dat Pro Fac Gar Fac Gar Fac Upp Upp Zhi Pro Fac Ext Cet Arc Hub Res Qua Sec Traps Triggered 55 | . 6 . 4 . . . 3 11 . 3 1 . 1 . . . . . 2 5 7 2 . . . . 2 2 . . 1 3 1 1 Indirectly 1 | . . . . . . . . . . . . . . . . . . . . . 1 . . . . . . . . . . . . . Trap Hack Attempts 11 | . . . . . . . . 11 . . . . . . . . . . . . . . . . . . . . . . . . . . Triggered . | . . . . . . . . . . . . . . . . . . . . . . . . . . . . . . . . . . . Disarmed . | . . . . . . . . . . . . . . . . . . . . . . . . . . . . . . . . . . . Reprogrammed 7 | . . . . . . . . 1 . . . . . . . . . 6 . . . . . . . . . . . . . . . . Reused 5 | . . . . . . . . . . . . . . . . . . 5 . . . . . . . . . . . . . . . . Traps Extracted . | . . . . . . . . . . . . . . . . . . . . . . . . . . . . . . . . . . . Installed . | . . . . . . . . . . . . . . . . . . . . . . . . . . . . . . . . . . . Triggered 5 | . . . . . . . . . . . . . . . . . . 5 . . . . . . . . . . . . . . . . Machines | -11 -10 -10 -9 -9 -9 -8 -8 -8 -8 -8 -7 -7 -7 -7 -7 -7 -6 -6 -6 -6 -6 -5 -5 -5 -5 -4 -4 -4 -4 -4 -4 -3 -3 -3 ---------- Run | Scr Mat Min Mat Min Exi Min Mat Gar Mat Gar Fac Was Fac Low Low Dat Pro Fac Gar Fac Gar Fac Upp Upp Zhi Pro Fac Ext Cet Arc Hub Res Qua Sec Machines Disabled 74 | . 1 . 2 1 . . 1 5 4 . . . 11 . . . . 3 2 5 1 1 . . . . 6 1 3 1 11 3 5 7 Max in Single Turn 5 | . 1 . 1 1 . . 1 1 2 . . . 5 . . . . 1 1 1 1 1 . . . . 4 1 2 1 4 1 1 1 Garrison Access 10 | . . . . . . . . . . . 1 . 1 . . . . . . . . 1 . . . . 2 . . . 2 1 1 1 Garrison Relay 6 | . . . . . . . . 4 . . . . . . . . . . 1 . 1 . . . . . . . . . . . . . Network Hub 4 | . . . . . . . . . . . . . . . . . . . . . . . . . . . . . . . 4 . . . Machines Sabotaged . | . . . . . . . . . . . . . . . . . . . . . . . . . . . . . . . . . . . Garrisons Compromised . | . . . . . . . . . . . . . . . . . . . . . . . . . . . . . . . . . . . Overloaded Fab Kills . | . . . . . . . . . . . . . . . . . . . . . . . . . . . . . . . . . . . Fab Network Shutdowns 1 | . . . . . . . . . . . . . . . . . . . . . . . . . . . 1 . . . . . . . Hacking | -11 -10 -10 -9 -9 -9 -8 -8 -8 -8 -8 -7 -7 -7 -7 -7 -7 -6 -6 -6 -6 -6 -5 -5 -5 -5 -4 -4 -4 -4 -4 -4 -3 -3 -3 --------- Run | Scr Mat Min Mat Min Exi Min Mat Gar Mat Gar Fac Was Fac Low Low Dat Pro Fac Gar Fac Gar Fac Upp Upp Zhi Pro Fac Ext Cet Arc Hub Res Qua Sec Machines Accessed 107 | . 5 . 6 . . . 2 . 5 . 4 . 10 2 . 4 . 7 . 5 . 6 1 1 9 . 7 6 2 . 9 3 9 4 Terminals 52 | . 3 . 4 . . . 1 . 2 . 2 . 4 1 . . . 4 . 2 . 2 . . . . 3 6 2 . 7 1 5 3 Fabricators 4 | . . . . . . . . . . . . . . . . . . 1 . 1 . 1 . . . . 1 . . . . . . . Repair Stations 8 | . . . . . . . . . 1 . . . . . . . . 1 . 1 . 1 . . . . 1 . . . . 1 2 . Recycling Units 10 | . 2 . 2 . . . . . 1 . 1 . 4 . . . . . . . . . . . . . . . . . . . . . Scanalyzers 3 | . . . . . . . . . . . . . 1 . . . . . . . . 1 . . . . . . . . . . 1 . Garrison Access 14 | . . . . . . . 1 . 1 . 1 . 1 . . . . 1 . 1 . 1 . . . . 2 . . . 2 1 1 1 Total Hacks 323 | . 10 . 11 . . . 2 . 8 . 9 . 14 6 . 30 . 13 . 10 . 14 1 1 48 . 21 23 7 . 26 10 47 12 Successful 225 | . 7 . 10 . . . 1 . 4 . 2 . 9 3 . 30 . 9 . 1 . 9 1 1 48 . 13 12 4 . 11 4 39 7 Failed 98 | . 3 . 1 . . . 1 . 4 . 7 . 5 3 . . . 4 . 9 . 5 . . . . 8 11 3 . 15 6 8 5 Catastrophic 18 | . 1 . . . . . 1 . 2 . . . . 1 . . . 1 . 1 . 2 . . . . 1 1 2 . 3 1 . 1 Database Lockouts . | . . . . . . . . . . . . . . . . . . . . . . . . . . . . . . . . . . . Manual 103 | . 9 . 8 . . . 1 . 2 . 4 . 9 4 . . . 4 . 1 . . . . . . 5 19 5 1 12 . 11 8 Terminals 149 | . 8 . 9 . . . 1 . 3 . 6 . 7 5 . . . 8 . 4 . 5 . . . . 8 23 7 . 23 5 17 10 Fabricators 8 | . . . . . . . . . . . . . . . . . . 1 . 3 . 1 . . . . 3 . . . . . . . Repair Stations 42 | . . . . . . . . . 3 . . . . . . . . 3 . 2 . 4 . . . . 5 . . . . 3 22 . Recycling Units 11 | . 2 . 2 . . . . . 1 . 2 . 4 . . . . . . . . . . . . . . . . . . . . . Scanalyzers 11 | . . . . . . . . . . . . . 2 . . . . . . . . 2 . . . . . . . . . . 7 . Garrison Access 21 | . . . . . . . 1 . 1 . 1 . 1 . . . . 1 . 1 . 2 . . . . 5 . . . 3 2 1 2 Terminal Hacks 149 | . 5 . 8 . . . . . . . . . 1 3 . 30 . 6 . . . 2 1 1 48 . 5 10 4 . 8 2 11 4 Record 50 | . . . . . . . . . . . . . . 1 . 11 . . . . . . . . 36 . . . . . . . 2 . Part Schematic 17 | . 1 . 1 . . . . . . . . . . 1 . 10 . . . . . . . . 4 . . . . . . . . . Robot Schematic 6 | . . . . . . . . . . . . . . . . 6 . . . . . . . . . . . . . . . . . . Robot Analysis 5 | . . . . . . . . . . . . . . . . . . . . . . . . . 4 . . 1 . . . . . . Prototype ID Bank 11 | . 1 . 2 . . . . . . . . . . . . 3 . . . . . . . . 4 . . 1 . . . . . . Open Door 6 | . . . . . . . . . . . . . . 1 . . . . . . . . 1 1 . . 1 . . . . . 1 1 Level Access Points 1 | . . . . . . . . . . . . . . . . . . . . . . . . . . . . . . . 1 . . . Branch Access Points 5 | . . . 1 . . . . . . . . . 1 . . . . 1 . . . . . . . . 1 . . . . . 1 . Emergency Access Points 1 | . . . . . . . . . . . . . . . . . . . . . . . . . . . . . . . 1 . . . Machine Index 2 | . . . . . . . . . . . . . . . . . . . . . . . . . . . . . . . 1 . 1 . Terminal Index 6 | . . . . . . . . . . . . . . . . . . 1 . . . . . . . . . 2 . . . 1 2 . Fabricator Index 1 | . . . . . . . . . . . . . . . . . . . . . . . . . . . 1 . . . . . . . Garrison Index 2 | . . . . . . . . . . . . . . . . . . 1 . . . . . . . . . . . . . 1 . . Unreport Threat 15 | . . . . . . . . . . . . . . . . . . . . . . 2 . . . . 1 2 4 . 3 . 2 1 Locate Traps 1 | . . . . . . . . . . . . . . . . . . . . . . . . . . . . . . . . . . 1 Reprogram Traps 1 | . . . . . . . . . . . . . . . . . . 1 . . . . . . . . . . . . . . . . Security Status 2 | . . . . . . . . . . . . . . . . . . . . . . . . . . . . 1 . . 1 . . . Surveillance Status 1 | . . . . . . . . . . . . . . . . . . . . . . . . . . . . 1 . . . . . . Reinforcement Status 1 | . . . . . . . . . . . . . . . . . . . . . . . . . . . . 1 . . . . . . Recall Reinforcements 2 | . . . . . . . . . . . . . . . . . . . . . . . . . . . . 1 . . . . . 1 Hauler Manifests 7 | . 2 . 2 . . . . . . . . . . . . . . 1 . . . . . . . . . . . . 1 . 1 . Registered Components 2 | . 1 . . . . . . . . . . . . . . . . . . . . . . . . . 1 . . . . . . . Registered Prototypes 3 | . . . 2 . . . . . . . . . . . . . . 1 . . . . . . . . . . . . . . . . Zone Layout 1 | . . . . . . . . . . . . . . . . . . . . . . . . . . . . . . . . . 1 . Fabricator Hacks 3 | . . . . . . . . . . . . . . . . . . . . . . 1 . . . . 2 . . . . . . . Load Schematic 1 | . . . . . . . . . . . . . . . . . . . . . . . . . . . 1 . . . . . . . Build 2 | . . . . . . . . . . . . . . . . . . . . . . 1 . . . . 1 . . . . . . . Repair Station Hacks 27 | . . . . . . . . . 2 . . . . . . . . 2 . . . 2 . . . . 3 . . . . . 18 . Scan Component 15 | . . . . . . . . . 1 . . . . . . . . 1 . . . 2 . . . . 2 . . . . . 9 . Repair 12 | . . . . . . . . . 1 . . . . . . . . 1 . . . . . . . . 1 . . . . . 9 . Recycling Unit Hacks . | . . . . . . . . . . . . . . . . . . . . . . . . . . . . . . . . . . . Scanalyzer 10 | . . . . . . . . . . . . . 2 . . . . . . . . 2 . . . . . . . . . . 6 . Insert Component 6 | . . . . . . . . . . . . . 1 . . . . . . . . 1 . . . . . . . . . . 4 . Analyze 4 | . . . . . . . . . . . . . 1 . . . . . . . . 1 . . . . . . . . . . 2 . Garrison Access Hacks 19 | . . . . . . . 1 . 1 . 1 . 1 . . . . 1 . 1 . 2 . . . . 3 . . . 3 2 1 2 Unlock Access 4 | . . . . . . . 1 . 1 . . . . . . . . 1 . 1 . . . . . . . . . . . . . . Seal Access 9 | . . . . . . . . . . . 1 . 1 . . . . . . . . 1 . . . . 1 . . . 2 1 1 1 Coupler Status 6 | . . . . . . . . . . . . . . . . . . . . . . 1 . . . . 2 . . . 1 1 . 1 Unauthorized Hacks 44 | . 4 . 4 . . . . . 2 . 5 . 13 . . . . . . . . . . . . . 2 4 . . . . 6 4 Terminals 8 | . . . . . . . . . . . 1 . 1 . . . . . . . . . . . . . . 2 . . . . 3 1 Track 1 | . . . . . . . . . . . . . . . . . . . . . . . . . . . . . . . . . 1 . Assimilate 2 | . . . . . . . . . . . 1 . . . . . . . . . . . . . . . . . . . . . . 1 Botnet 3 | . . . . . . . . . . . . . 1 . . . . . . . . . . . . . . 1 . . . . 1 . Operators 2 | . . . . . . . . . . . . . . . . . . . . . . . . . . . . 1 . . . . 1 . Fabricators . | . . . . . . . . . . . . . . . . . . . . . . . . . . . . . . . . . . . Repair Stations . | . . . . . . . . . . . . . . . . . . . . . . . . . . . . . . . . . . . Recycling Units 9 | . 2 . 2 . . . . . 1 . . . 4 . . . . . . . . . . . . . . . . . . . . . Tunnel 9 | . 2 . 2 . . . . . 1 . . . 4 . . . . . . . . . . . . . . . . . . . . . Scanalyzers . | . . . . . . . . . . . . . . . . . . . . . . . . . . . . . . . . . . . Garrison Access . | . . . . . . . . . . . . . . . . . . . . . . . . . . . . . . . . . . . Data Cores Recovered 3 | . . . 1 . . . . . . . 1 . . . . . . . . . . . . . . . . 1 . . . . . . Used 1 | . . . . . . . . . . . 1 . . . . . . . . . . . . . . . . . . . . . . . Hacking Detections 59 | . 2 . 4 . . . 1 . 3 . 3 . 5 1 . . . 4 . 5 . 6 . . . . 6 5 2 . 5 2 4 1 Full Trace Events 12 | . 1 . . . . . . . . . 2 . . . . . . 2 . 1 . 1 . . . . 2 1 1 . 1 . . . Feedback Events 1 | . . . . . . . . . . . . . . . . . . . . . . . . . . . . 1 . . . . . . Corruption 1 | . . . . . . . . . . . . . . . . . . . . . . . . . . . . 1 . . . . . . Feedback Blocked . | . . . . . . . . . . . . . . . . . . . . . . . . . . . . . . . . . . . Robot Schematics Acquired 6 | . . . . . . . . . . . . . . . . 6 . . . . . . . . . . . . . . . . . . Robots Built . | . . . . . . . . . . . . . . . . . . . . . . . . . . . . . . . . . . . Matter . | . . . . . . . . . . . . . . . . . . . . . . . . . . . . . . . . . . . Time . | . . . . . . . . . . . . . . . . . . . . . . . . . . . . . . . . . . . Total Robot Build Rating . | . . . . . . . . . . . . . . . . . . . . . . . . . . . . . . . . . . . Part Schematics Acquired 20 | . 1 . . . . . . . . . . . 1 1 . 10 . . . . . 1 . . 4 . . . . . . . 2 . Parts Built 3 | . . . . . . . . . . . . . . . . . . . . . . 2 . . . . 1 . . . . . . . Matter 563 | . . . . . . . . . . . . . . . . . . . . . . 278 . . . . 285 . . . . . . . Time 221 | . . . . . . . . . . . . . . . . . . . . . . 69 . . . . 152 . . . . . . . Total Part Build Rating 23 | . . . . . . . . . . . . . . . . . . . . . . 18 . . . . 5 . . . . . . . Parts Repaired 12 | . . . . . . . . . 1 . . . . . . . . 1 . . . . . . . . 1 . . . . . 9 . Time 414 | . . . . . . . . . 60 . . . . . . . . 44 . . . . . . . . 56 . . . . . 254 . Parts Recycled . | . . . . . . . . . . . . . . . . . . . . . . . . . . . . . . . . . . . Recycled Matter . | . . . . . . . . . . . . . . . . . . . . . . . . . . . . . . . . . . . Retrieved Matter . | . . . . . . . . . . . . . . . . . . . . . . . . . . . . . . . . . . . Retrieved Components . | . . . . . . . . . . . . . . . . . . . . . . . . . . . . . . . . . . . Parts Scanalyzed 4 | . . . . . . . . . . . . . 1 . . . . . . . . 1 . . . . . . . . . . 2 . Part Schematics Acquired 4 | . . . . . . . . . . . . . 1 . . . . . . . . 1 . . . . . . . . . . 2 . Parts Damaged 1 | . . . . . . . . . . . . . . . . . . . . . . . . . . . . . . . . . 1 . Bothacking | -11 -10 -10 -9 -9 -9 -8 -8 -8 -8 -8 -7 -7 -7 -7 -7 -7 -6 -6 -6 -6 -6 -5 -5 -5 -5 -4 -4 -4 -4 -4 -4 -3 -3 -3 ------------ Run | Scr Mat Min Mat Min Exi Min Mat Gar Mat Gar Fac Was Fac Low Low Dat Pro Fac Gar Fac Gar Fac Upp Upp Zhi Pro Fac Ext Cet Arc Hub Res Qua Sec Used RIF Installer 4 | . . . . . . . . 1 . 1 . . . . . . . . 1 . 1 . . . . . . . . . . . . . Coupler Efficiency 1 | . . . . . . . . . . 1 . . . . . . . . . . . . . . . . . . . . . . . . Program Shield 1 | . . . . . . . . . . . . . . . . . . . 1 . . . . . . . . . . . . . . . Autoassimilate 1 | . . . . . . . . . . . . . . . . . . . . . 1 . . . . . . . . . . . . . Robots Hacked 50 | . . . . . . . . 7 4 1 1 6 1 . . . . . 4 1 . 2 . . . . 1 5 . . 9 2 3 3 Non-combat 12 | . . . . . . . . . . . . . 1 . . . . . . 1 . . . . . . 1 5 . . 2 . 1 1 Combat 38 | . . . . . . . . 7 4 1 1 6 . . . . . . 4 . . 2 . . . . . . . . 7 2 2 2 Autoassimilated 4 | . . . . . . . . . . . . . . . . . . . . . . . . . . . . . . . 4 . . . Robot Hacks Applied 63 | . . . . . . . . 7 4 1 1 9 3 . . . . . 4 2 . 2 . . . . 2 5 . . 12 2 6 3 parse_system 2 | . . . . . . . . . . . . . . . . . . . . . . . . . . . . . . . . 2 . . ignore_repairs 5 | . . . . . . . . . . . . . . . . . . . . . . . . . . . . 5 . . . . . . purge_threat 16 | . . . . . . . . . . . . . 3 . . . . . . 1 . . . . . . 2 . . . 8 . 2 . reprogram_traps 1 | . . . . . . . . . . . . . . . . . . . . 1 . . . . . . . . . . . . . . block_reporting 1 | . . . . . . . . . . . . . . . . . . . . . . . . . . . . . . . . . . 1 locate_prototypes 3 | . . . . . . . . . . . . . . . . . . . . . . . . . . . . . . . . . 2 1 report_prototypes 1 | . . . . . . . . . . . . . . . . . . . . . . . . . . . . . . . . . 1 . report_analyses 1 | . . . . . . . . . . . . . . . . . . . . . . . . . . . . . . . . . 1 . ignore_targets 9 | . . . . . . . . . . . . 9 . . . . . . . . . . . . . . . . . . . . . . link_fov 1 | . . . . . . . . . . . . . . . . . . . . . . . . . . . . . . . 1 . . . overwrite_iff 3 | . . . . . . . . . . . . . . . . . . . 2 . . . . . . . . . . . 1 . . . formatsys_high 20 | . . . . . . . . 7 4 1 1 . . . . . . . 2 . . 2 . . . . . . . . 2 . . 1 Relay Couplers Released 33 | . . . . . . . . 18 . . . . . . . . . . 4 . 3 . . . . . 5 . . . 3 . . . Machine Destruction 33 | . . . . . . . . 18 . . . . . . . . . . 4 . 3 . . . . . 5 . . . 3 . . . Attached 20 | . . . . . . . . 3 3 . 2 . 1 . . . . . 1 1 . 1 . . . . 2 . . . 4 . 2 . Robots Rewired 20 | . . . 1 . . . . . . . . . . . . . . . . 1 . 1 . 1 . . . 15 . . . 1 . . Allies Hacked 2 | . . . . . . . . . . . . . . . . . . . . . . . . . . . . 1 . . 1 . . . Hacks Repelled . | . . . . . . . . . . . . . . . . . . . . . . . . . . . . . . . . . . . Allies | -11 -10 -10 -9 -9 -9 -8 -8 -8 -8 -8 -7 -7 -7 -7 -7 -7 -6 -6 -6 -6 -6 -5 -5 -5 -5 -4 -4 -4 -4 -4 -4 -3 -3 -3 -------- Run | Scr Mat Min Mat Min Exi Min Mat Gar Mat Gar Fac Was Fac Low Low Dat Pro Fac Gar Fac Gar Fac Upp Upp Zhi Pro Fac Ext Cet Arc Hub Res Qua Sec Total Allies 68 | . . 3 1 . . . . 7 4 1 1 1 . . . . 1 . 4 1 . 3 . 1 . . . 27 . . 10 1 . 2 Largest Group 14 | . . 3 3 . . . . 2 2 1 1 1 . . . . 1 1 1 1 . 3 . 1 . . . 14 5 1 4 1 . 1 Highest-Rated Group 670 | . . 40 40 . . . . 32 32 15 32 31 . . . . 94 94 47 25 . 145 . 42 . . . 670 223 49 188 56 . 45 Highest-Rated Ally 156 | . . 16 16 . . . . 29 16 15 32 31 . . . . 94 94 47 25 . 49 . 42 . . . 156 49 49 47 56 . 45 Total Orders 5 | . . . . . . . . . . . . . . . . . . 1 . . . 2 . . . . . . . . 1 . . 1 GOTO 2 | . . . . . . . . . . . . . . . . . . . . . . . . . . . . . . . 1 . . 1 EXPLORE 3 | . . . . . . . . . . . . . . . . . . 1 . . . 2 . . . . . . . . . . . . Ally Attacks 500 | . . . 14 . . . . 35 63 9 6 85 . . . . . 9 5 . . 18 . 2 . . . 99 80 2 45 7 . 21 Total Damage 10317 | . . . 212 . . . . 484 814 138 177 1386 . . . . . 279 98 . . 497 . 32 . . . 2977 1708 45 1217 253 . . Kills 64 | . . . 1 . . . . 6 7 4 1 1 . . . . . 1 . . . 6 . . . . . 19 11 . 6 1 . . Allies Corrupted 8 | . . . . . . . . . . . . 1 . . . . . . . . . 1 . . . . . 2 . . 4 . . . Allies Melted . | . . . . . . . . . . . . . . . . . . . . . . . . . . . . . . . . . . . Intel | -11 -10 -10 -9 -9 -9 -8 -8 -8 -8 -8 -7 -7 -7 -7 -7 -7 -6 -6 -6 -6 -6 -5 -5 -5 -5 -4 -4 -4 -4 -4 -4 -3 -3 -3 ------- Run | Scr Mat Min Mat Min Exi Min Mat Gar Mat Gar Fac Was Fac Low Low Dat Pro Fac Gar Fac Gar Fac Upp Upp Zhi Pro Fac Ext Cet Arc Hub Res Qua Sec Robot Analysis Total 5 | . . . . . . . . . . . . . . . . . . . . . . . . . 4 . . 1 . . . . . . Derelict Logs Recovered 9 | . . 1 . 1 . . . . . . . . . . 1 . 2 . . . . . 1 1 . 2 . . . . . . . . Drone Launches 6 | . . . . . . . . . . . . . . . . . . 2 . . . 4 . . . . . . . . . . . . Drone Recoveries . | . . . . . . . . . . . . . . . . . . . . . . . . . . . . . . . . . . . Exploration | -11 -10 -10 -9 -9 -9 -8 -8 -8 -8 -8 -7 -7 -7 -7 -7 -7 -6 -6 -6 -6 -6 -5 -5 -5 -5 -4 -4 -4 -4 -4 -4 -3 -3 -3 ------------- Run | Scr Mat Min Mat Min Exi Min Mat Gar Mat Gar Fac Was Fac Low Low Dat Pro Fac Gar Fac Gar Fac Upp Upp Zhi Pro Fac Ext Cet Arc Hub Res Qua Sec Turns Passed 42545 | . 1004 947 2391 1090 329 1180 433 1355 958 315 1010 217 3272 530 585 131 590 2093 371 2841 911 2385 1076 828 318 924 3366 1429 663 142 2587 2015 2931 1328 Spaces Moved 18522 | 1 432 567 1016 477 163 547 155 509 303 123 500 117 1465 320 380 86 373 926 139 1271 420 792 537 404 176 479 1312 591 299 60 1041 842 1188 511 Core 2 | . . . . . . . . . . . . . . . . . . . . . . . . . . . . . . . . . . 2 Treads 3880 | . 414 207 966 477 163 547 155 509 303 123 16 . . . . . . . . . . . . . . . . . . . . . . . Legs 10 | 1 9 . . . . . . . . . . . . . . . . . . . . . . . . . . . . . . . . . Wheels 14630 | . 9 360 50 . . . . . . . 484 117 1465 320 380 86 373 926 139 1271 420 792 537 404 176 479 1312 591 299 60 1041 842 1188 509 Hover . | . . . . . . . . . . . . . . . . . . . . . . . . . . . . . . . . . . . Flight . | . . . . . . . . . . . . . . . . . . . . . . . . . . . . . . . . . . . Fastest Speed 120 | 120 120 150 150 200 200 200 200 220 220 220 150 150 150 150 150 150 150 150 160 160 160 170 170 180 170 180 170 180 180 180 170 160 160 140 Average Speed 176 | 120 177 161 198 200 200 200 213 220 222 220 161 159 151 150 150 150 150 164 165 163 169 174 179 180 170 180 182 180 183 180 180 181 167 180 Slowest Speed 3500 | 120 220 220 240 200 200 200 260 220 240 220 220 160 160 150 150 150 150 180 170 180 170 190 180 180 180 190 190 180 190 180 190 250 180 3500 Overloaded Moves . | . . . . . . . . . . . . . . . . . . . . . . . . . . . . . . . . . . . Propulsion Burnouts . | . . . . . . . . . . . . . . . . . . . . . . . . . . . . . . . . . . . Robots Hopped . | . . . . . . . . . . . . . . . . . . . . . . . . . . . . . . . . . . . Cave-ins Triggered 2 | . . . . . . . . . . . . . . . . . . . . . . . . . . . 1 . . . . 1 . . Exploration Rate (%) 55 | 1 66 99 96 98 52 96 22 86 36 34 11 78 43 53 58 70 59 26 48 36 49 28 67 52 62 65 31 65 69 70 83 30 91 29 Regions Visited 34 Branch Regions 18 Pre-discovered Areas 15 | . 2 1 2 1 . . . . 1 . . . 4 . . 1 . . . . . . . . 3 . . . . . . . . . Known Exits Taken 22 | . . . 1 . . . 1 . 1 . . . 1 1 1 1 1 1 . 1 . 1 1 1 1 1 1 1 1 1 1 1 1 . Unknown Exits Taken 6 | 1 1 1 . 1 1 1 . . . . . . . . . . . . . . . . . . . . . . . . . . . . Scrap Searched 14 | . . 2 . 1 . 1 . . . . . . . . 2 . 2 . . . . . 3 2 . 1 . . . . . . . . Spaces Dug 425 | . . . 7 . . . . 5 7 . 4 . 70 9 3 . 2 38 2 56 9 47 1 . . 3 65 13 . . 34 17 21 12 Terrain Destroyed 1698 | . 37 5 56 4 . 17 . 9 66 . 6 . 157 29 3 . 15 46 15 96 18 68 11 5 . 35 116 15 14 . 753 51 25 26 Melee 364 | . . . . . . . . . . . 4 . 70 1 3 . 2 38 2 56 . 47 1 . . 3 65 4 . . 19 16 21 12 Projectile 42 | . . . . . . . . . 7 . 2 . 1 . . . . . . 1 . . . . . . . 11 . . 2 10 4 4 AOE 1292 | . 37 5 56 4 . 17 . 9 59 . . . 86 28 . . 13 8 13 39 18 21 10 5 . 32 51 . 14 . 732 25 . 10 Actions | -11 -10 -10 -9 -9 -9 -8 -8 -8 -8 -8 -7 -7 -7 -7 -7 -7 -6 -6 -6 -6 -6 -5 -5 -5 -5 -4 -4 -4 -4 -4 -4 -3 -3 -3 --------- Run | Scr Mat Min Mat Min Exi Min Mat Gar Mat Gar Fac Was Fac Low Low Dat Pro Fac Gar Fac Gar Fac Upp Upp Zhi Pro Fac Ext Cet Arc Hub Res Qua Sec Total 25606 | . 550 587 1237 551 167 586 216 688 495 153 653 144 2176 360 387 89 391 1362 220 1797 540 1587 622 482 196 512 2006 882 380 88 1473 1222 1934 873 Wait 2982 | . 15 3 29 26 . 3 20 55 88 10 95 1 301 23 . . 6 236 4 206 5 545 35 54 . 5 360 103 4 1 55 141 417 136 Move 18491 | . 431 566 1015 476 162 546 155 508 303 122 500 116 1464 319 379 85 372 926 138 1270 419 791 536 403 175 478 1311 590 298 59 1040 840 1187 511 Hop . | . . . . . . . . . . . . . . . . . . . . . . . . . . . . . . . . . . . Pick Up 271 | . 11 6 28 3 1 3 5 14 9 . 5 2 19 . . . . 17 5 19 3 13 5 . 3 . 21 6 5 2 18 18 20 10 Fast Attach 185 | . 7 2 11 . . . 7 . 2 . 5 1 18 2 . . . 14 . 22 . 10 4 . 8 1 11 2 6 . 12 15 18 7 Attach 289 | . 7 1 6 . . 1 4 5 3 1 4 1 34 1 . 2 . 18 2 19 6 25 3 . . 1 35 5 4 2 20 24 33 22 Detach 215 | . 1 2 1 . . . . 1 1 1 4 2 28 1 . 2 . 23 1 12 3 21 . . . . 24 2 4 . 17 12 27 25 Swap 456 | . 12 . 20 . 3 2 3 14 18 2 12 1 41 4 3 . 6 25 14 57 10 36 8 7 . 11 18 8 13 3 45 14 23 23 Drop 344 | . 2 . 37 . 1 1 1 8 10 . 1 9 35 2 . . . 15 4 35 1 20 10 . 10 1 25 8 10 2 27 25 27 17 Fire 1395 | . 59 7 82 31 . 18 16 36 51 9 11 9 128 7 2 . 5 39 26 92 42 74 15 18 . 12 88 55 36 19 111 93 119 85 Melee 705 | . . . 1 . . . . 9 4 1 14 2 102 1 3 . 2 48 9 65 3 50 6 . . 3 113 19 . . 127 23 63 37 Ram 4 | . . . . . . . . . . . 1 . 2 . . . . . 1 . . . . . . . . . . . . . . . Kick . | . . . . . . . . . . . . . . . . . . . . . . . . . . . . . . . . . . . Crush 32 | . 5 . 7 1 . 12 5 . 2 . . . . . . . . . . . . . . . . . . . . . . . . . Escape Stasis 129 | . . . . . . . . 22 . 6 . . 4 . . . . . 16 . 48 . . . . . . 16 . . . 17 . . Rewire 94 | . . . . 14 . . . 5 4 1 1 . . . . . . . . . . . . . . . . 68 . . 1 . . . Trap 11 | . . . . . . . . 11 . . . . . . . . . . . . . . . . . . . . . . . . . . Miscellaneous 3 | . . . . . . . . . . . . . . . . . . 1 . . . 2 . . . . . . . . . . . . Route ------- -11/Scrapyard -10/Materials (discovered 3 exits: *Mat x2 / [*Min]) -10/Mines (discovered 2 exits: *Mat x2) -9/Materials (discovered 4 exits: *Mat x3 / *Min) -9/Mines (discovered 3 exits: *Mat x2 / [*Exi]) -9/Exiles -8/Mines (discovered 2 exits: *Mat x2) -8/Materials -8/Garrison -8/Materials (discovered 3 exits: *Fac / [*Sto] / Gar) -8/Garrison -7/Factory -7/Waste -7/Factory (discovered 3 exits: *Fac / *Low x2) -7/Lower Caves -7/Lower Caves -7/Data Miner -6/Proximity Caves -6/Factory (discovered 4 exits: *Fac / *Low x2 / Gar) -6/Garrison -6/Factory (discovered 4 exits: *Fac x3 / Gar) -6/Garrison (discovered 2 exits: *Fac x2) -5/Factory (discovered 2 exits: *Fac / *Upp) -5/Upper Caves -5/Upper Caves -5/Zhirov -4/Proximity Caves -4/Factory (discovered 6 exits: *Res x2 / Upp x2 / *Ext x2) -4/Extension (discovered 2 exits: *Res / *Cet) -4/Cetus (discovered 2 exits: *Res / *Arc) -4/Archives -4/Hub_04(d) (discovered 4 exits: *Res x4) -3/Research (discovered 3 exits: *Res / *Qua x2) -3/Quarantine (discovered 2 exits: *Res / *Sec) -3/Section 7 (discovered 1 exit: *Res) History --------- Turn | Location | Event 1 | -11/Scrapyard | Discovered new exit (range 0) 1 | -11/Scrapyard | Entered Materials 324 | -10/Materials | Discovered new exit (range 7) 469 | -10/Materials | Build established: Hauler-Mutant 595 | -10/Materials | Discovered new exit (range 16) 643 | -10/Materials | Discovered new exit (range 16) 1005 | -10/Materials | Entered Mines 1226 | -10/Mines | Discovered new exit (range 8) 1409 | -10/Mines | Discovered new exit (range 7) 1515 | -10/Mines | Received a Rocket Launcher from a helpful Derelict 1856 | -10/Mines | Assisted by bots powering up and referring to "LRC-V3" 1952 | -10/Mines | Entered Materials 1952 | -9/Materials | Accompanied by 3 allies 1952 | -9/Materials | Evolved 2 slots: Utility x2 2530 | -9/Materials | Discovered new exit (range 11) 2967 | -9/Materials | Discovered new exit (range 10) 3256 | -9/Materials | Discovered new exit (range 14) 3953 | -9/Materials | Discovered new exit (range 4) 4017 | -9/Materials | Identified exit to Mines 4343 | -9/Materials | Entered Mines 4345 | -9/Mines | Met a Derelict bent on vengeance 4359 | -9/Mines | Discovered new exit (range 14) 4388 | -9/Mines | Assembled infested the area 4401 | -9/Mines | Found a hidden stash of uninstalled traps 4423 | -9/Mines | Met 8R-AWN 5191 | -9/Mines | Discovered new exit (range 10) 5241 | -9/Mines | Learned location of Zion (-6) 5301 | -9/Mines | Discovered new exit (range 5) 5433 | -9/Mines | Entered Exiles 5483 | -9/Exiles | Welcomed by 8R-AWN 5515 | -9/Exiles | Met EX-HEX 5571 | -9/Exiles | Met EX-BIN 5609 | -9/Exiles | Met EX-DEC 5746 | -9/Exiles | Discovered new exit (range 10) 5762 | -9/Exiles | Entered Mines 5878 | -8/Mines | Discovered new exit (range 11) 6858 | -8/Mines | Discovered new exit (range 5) 6942 | -8/Mines | Entered Materials 6942 | -8/Materials | Evolved 2 slots: Utility x2 7276 | -8/Materials | Garrison activated, responded to threat 7375 | -8/Materials | Identified exit to Garrison 7375 | -8/Materials | Entered Garrison 7386 | -8/Garrison | Installed Relay Interface Framework 7456 | -8/Garrison | Triggered checkpoint 7519 | -8/Garrison | Garrison Relay disabled 7651 | -8/Garrison | Triggered checkpoint 7719 | -8/Garrison | Triggered checkpoint 7818 | -8/Garrison | Triggered checkpoint 7884 | -8/Garrison | Garrison Relay disabled 8179 | -8/Garrison | Build established: Bothacker-Mutant 8248 | -8/Garrison | Triggered checkpoint 8296 | -8/Garrison | Garrison Relay disabled 8370 | -8/Garrison | Triggered checkpoint 8456 | -8/Garrison | Triggered checkpoint 8574 | -8/Garrison | Triggered checkpoint 8613 | -8/Garrison | Garrison Relay disabled 8710 | -8/Garrison | Discovered new exit (range 9) 8730 | -8/Garrison | Entered Materials 8730 | -8/Materials | Accompanied by 1 ally 8730 | -8/Materials | Discovered new exit (range 7) 8823 | -8/Materials | Repaired Adv. EMP Blaster 9379 | -8/Materials | Discovered new exit (range 15) 9503 | -8/Materials | Garrison activated, responded to threat 9623 | -8/Materials | Garrison activated, responded to threat 9688 | -8/Materials | Identified exit to Garrison 9688 | -8/Materials | Entered Garrison 9802 | -8/Garrison | Triggered checkpoint 9883 | -8/Garrison | Triggered checkpoint 9966 | -8/Garrison | Discovered new exit (range 8) 9995 | -8/Garrison | Expanded RIF knowledge: Coupler Efficiency 10003 | -8/Garrison | Entered Factory 10003 | -7/Factory | Accompanied by 1 ally 10003 | -7/Factory | Evolved 2 slots: Utility x2 11013 | -7/Factory | Sucked down chute 11013 | -7/Factory | Entered Waste 11014 | -7/Waste | Met a frightened Derelict 11026 | -7/Waste | Spotted C-40 Crusher 11028 | -7/Waste | EMP discharged 11028 | -7/Waste | System corruption reached 10% 11046 | -7/Waste | Allies destroyed C-40 Crusher 11053 | -7/Waste | Found Damper Plating 11066 | -7/Waste | Spotted C-40 Crusher 11066 | -7/Waste | Spotted C-40 Crusher 11070 | -7/Waste | Found Damper Plating 11071 | -7/Waste | Spotted C-40 Crusher 11128 | -7/Waste | EMP discharged 11129 | -7/Waste | Spotted C-40 Crusher 11140 | -7/Waste | Spotted C-40 Crusher 11182 | -7/Waste | Discovered new exit (range 13) 11228 | -7/Waste | EMP discharged 11230 | -7/Waste | Entered Factory 11537 | -7/Factory | Build established: Hauler-Mutant 13738 | -7/Factory | Discovered new exit (range 7) 13747 | -7/Factory | Identified exit to Factory 14444 | -7/Factory | Discovered new exit (range 15) 14486 | -7/Factory | Identified exit to Lower Caves 14502 | -7/Factory | Entered Lower Caves 14900 | -7/Lower Caves | Found Prototype Device 14900 | -7/Lower Caves | Identified Heart of Steel 15020 | -7/Lower Caves | Discovered new exit (range 8) 15030 | -7/Lower Caves | Identified exit to Lower Caves 15032 | -7/Lower Caves | Entered another Lower Caves area 15242 | -7/Lower Caves | Learned Factory security intel 15460 | -7/Lower Caves | Encountered a Warlord checkpoint 15498 | -7/Lower Caves | Discovered new exit (range 16) 15588 | -7/Lower Caves | Identified exit to Data Miner 15617 | -7/Lower Caves | Entered Data Miner 15618 | -7/Data Miner | Discovered new exit (range 6) 15650 | -7/Data Miner | Met Data Miner 15683 | -7/Data Miner | Learned location of Section 7 (-3) 15683 | -7/Data Miner | Acquired the access code to Warlord's prototype stash 15708 | -7/Data Miner | Received God Mode back door access code from Data Miner 15743 | -7/Data Miner | Identified exit to Proximity Caves 15748 | -7/Data Miner | Entered Proximity Caves 15979 | -6/Proximity Caves | Learned 4 Factory zone layouts 16236 | -6/Proximity Caves | Escorted by Enhanced Grunt 16278 | -6/Proximity Caves | Discovered exit to Factory (range 10) 16338 | -6/Proximity Caves | Entered Factory 16338 | -6/Factory | Accompanied by 1 ally 16338 | -6/Factory | Evolved 2 slots: Utility x2 16782 | -6/Factory | Build established: Hauler-Assassin 16967 | -6/Factory | Discovered new exit (range 39) 17318 | -6/Factory | Found Prototype Device 17318 | -6/Factory | Identified Exp. Thermal Shield 17330 | -6/Factory | Spotted B-75 Beast 17353 | -6/Factory | Discovered new exit (range 3) 17357 | -6/Factory | Identified exit to Lower Caves 17553 | -6/Factory | Build established: Hauler-Mutant 17573 | -6/Factory | Identified exit to Factory 17892 | -6/Factory | Build established: Hauler-Assassin 18053 | -6/Factory | Incoming investigation squad redirected 18069 | -6/Factory | Repaired Arm. Huge Wheel 18431 | -6/Factory | Identified exit to Garrison 18431 | -6/Factory | Entered Garrison 18439 | -6/Garrison | Expanded RIF knowledge: Program Shield 18498 | -6/Garrison | Garrison Relay disabled 18581 | -6/Garrison | Triggered checkpoint 18611 | -6/Garrison | Triggered checkpoint 18681 | -6/Garrison | Destroyed 9 combat bots 18788 | -6/Garrison | Discovered new exit (range 8) 18800 | -6/Garrison | Identified exit to Factory 18802 | -6/Garrison | Entered Factory 18920 | -6/Factory | Discovered exit to Factory (range 14) 18998 | -6/Factory | Found Prototype Processor 18998 | -6/Factory | Identified Exp. Signal Interpreter 19546 | -6/Factory | Build established: Hauler-Mutant 20637 | -6/Factory | Discovered exit to Factory (range 4) 20748 | -6/Factory | Build established: Hauler-Assassin 21477 | -6/Factory | Discovered exit to Factory (range 4) 21617 | -6/Factory | Identified exit to Garrison 21643 | -6/Factory | Entered Garrison 21784 | -6/Garrison | Triggered checkpoint 21933 | -6/Garrison | Build established: Hauler-Mutant 21985 | -6/Garrison | Discovered exit to Factory (range 14) 22164 | -6/Garrison | Triggered checkpoint 22206 | -6/Garrison | Garrison Relay disabled 22445 | -6/Garrison | Triggered checkpoint 22503 | -6/Garrison | Build established: Bothacker-Mutant 22525 | -6/Garrison | Discovered exit to Factory (range 8) 22548 | -6/Garrison | Expanded RIF knowledge: Autoassimilate 22554 | -6/Garrison | Entered Factory 22554 | -5/Factory | Evolved 2 slots: Utility x2 22846 | -5/Factory | Discovered new exit (range 2) 22847 | -5/Factory | Identified exit to Factory 23556 | -5/Factory | Fabricated Quantum Reactor (x2) 24324 | -5/Factory | Found Unknown Protection 24324 | -5/Factory | Identified Imp. Powered Armor 24329 | -5/Factory | Found Imp. Powered Armor 24654 | -5/Factory | First assault squad dispatched 24676 | -5/Factory | Incoming assault squad redirected 24743 | -5/Factory | Incoming investigation squad redirected 24750 | -5/Factory | Discovered new exit (range 17) 24929 | -5/Factory | Identified exit to Upper Caves 24939 | -5/Factory | Entered Upper Caves 24941 | -5/Upper Caves | Attracted the attention of an 0b10 checkpoint 25093 | -5/Upper Caves | Learned Factory garrison access intel 25628 | -5/Upper Caves | Discovered new exit (range 5) 25637 | -5/Upper Caves | Identified exit to Upper Caves 26015 | -5/Upper Caves | Entered another Upper Caves area 26376 | -5/Upper Caves | Attracted the attention of an 0b10 checkpoint 26684 | -5/Upper Caves | Discovered new exit (range 3) 26717 | -5/Upper Caves | Learned Factory stockpile data 26819 | -5/Upper Caves | Identified exit to Zhirov 26843 | -5/Upper Caves | Entered Zhirov 26843 | -5/Zhirov | Discovered new exit (range 3) 26876 | -5/Zhirov | Met Zhirov 26907 | -5/Zhirov | Learned location of Quarantine (-3) 26907 | -5/Zhirov | Learned location of Command (-1) 26942 | -5/Zhirov | Zhirov requested help retrieving the SGEMP Prototype 26978 | -5/Zhirov | Found Alien Artifact 26978 | -5/Zhirov | Identified Integrated Dissipator 26978 | -5/Zhirov | Installed Integrated Dissipator, increased core heat dissipation (+2%) 27006 | -5/Zhirov | Found Alien Artifact 27160 | -5/Zhirov | Identified exit to Proximity Caves 27161 | -5/Zhirov | Entered Proximity Caves 27564 | -4/Proximity Caves | Attracted the attention of an 0b10 checkpoint 27617 | -4/Proximity Caves | Learned Research terminal intel 27645 | -4/Proximity Caves | Learned Research non-interactive machine intel 27806 | -4/Proximity Caves | Discovered exit to Factory (range 8) 28085 | -4/Proximity Caves | Entered Factory 28085 | -4/Factory | Evolved 2 slots: Utility x2 28087 | -4/Factory | Loaded intel: 4 garrison access locations 28795 | -4/Factory | Found Quantum Capacitor 28855 | -4/Factory | Repaired Imp. Powered Armor 29148 | -4/Factory | Incoming assault squad redirected 29298 | -4/Factory | Crushed by falling debris 29321 | -4/Factory | Fabricated Exp. Terrain Scanner (x1) 29490 | -4/Factory | Local fabrication network quarantined 29680 | -4/Factory | Build established: Botlord-Assassin 29835 | -4/Factory | First assault squad dispatched 29863 | -4/Factory | Incoming assault squad redirected 30025 | -4/Factory | Destroyed 7 combat bots 30030 | -4/Factory | Discovered new exit (range 10) 30044 | -4/Factory | Identified exit to Research 30208 | -4/Factory | Discovered exit to Research (range 10) 30474 | -4/Factory | Identified exit to Upper Caves 30474 | -4/Factory | Identified exit to Extension 30526 | -4/Factory | Found Quantum Capacitor 30603 | -4/Factory | Build established: Botlord-Mutant 30859 | -4/Factory | Incoming assault squad redirected 31360 | -4/Factory | Build established: Botlord-Assassin 31451 | -4/Factory | Entered Extension 31510 | -4/Extension | Rescued A7 31892 | -4/Extension | Rescued a captive Derelict 31893 | -4/Extension | Rescued a captive Derelict 31985 | -4/Extension | Incoming investigation squad redirected 32033 | -4/Extension | Build established: Botlord-Skirmisher 32292 | -4/Extension | Rescued a captive Derelict 32293 | -4/Extension | Rescued a captive Derelict 32324 | -4/Extension | Rescued a captive Derelict 32325 | -4/Extension | Rescued a captive Derelict 32347 | -4/Extension | Rescued a captive Derelict 32423 | -4/Extension | Build established: Botlord-Assassin 32438 | -4/Extension | Rescued a captive Derelict 32526 | -4/Extension | Extracted ID and sensor layout for unrecognized location from A7's data core 32753 | -4/Extension | Rescued a captive Derelict 32789 | -4/Extension | Rescued a captive Derelict 32790 | -4/Extension | Rescued a captive Derelict 32848 | -4/Extension | Discovered exit to Research (range 10) 32850 | -4/Extension | Discovered new exit (range 6) 32871 | -4/Extension | Identified exit to Cetus 32880 | -4/Extension | Entered Cetus 32880 | -4/Cetus | Accompanied by 5 allies 32906 | -4/Cetus | Spotted Cetus Guard 32906 | -4/Cetus | Spotted Cetus Guard 32909 | -4/Cetus | Spotted Cetus Guard 32909 | -4/Cetus | Spotted Cetus Guard 32914 | -4/Cetus | Destroyed Cetus Guard 32914 | -4/Cetus | Allies destroyed Cetus Guard 32921 | -4/Cetus | Allies destroyed Cetus Guard 32923 | -4/Cetus | Destroyed Cetus Guard 33179 | -4/Cetus | Incoming investigation squad redirected 33196 | -4/Cetus | Discovered new exit (range 15) 33329 | -4/Cetus | Spotted Cetus Guard 33329 | -4/Cetus | Spotted Cetus Guard 33345 | -4/Cetus | Allies destroyed Cetus Guard 33347 | -4/Cetus | Spotted Cetus Guard 33347 | -4/Cetus | Spotted Cetus Guard 33351 | -4/Cetus | Destroyed Cetus Guard 33351 | -4/Cetus | Destroyed Cetus Guard 33352 | -4/Cetus | Destroyed Cetus Guard 33369 | -4/Cetus | Discovered exit to Research (range 16) 33378 | -4/Cetus | Met Revision 17 33540 | -4/Cetus | Identified exit to Archives 33543 | -4/Cetus | Entered Archives 33543 | -4/Archives | Accompanied by 1 ally 33610 | -4/Archives | Build established: Botlord-Mutant 33622 | -4/Archives | Unable to access archive contents 33644 | -4/Archives | Discovered new exit (range 15) 33682 | -4/Archives | Identified exit to Hub_04(d) 33685 | -4/Archives | Entered Hub_04(d) 33998 | -4/Hub_04(d) | Build established: Botlord-Assassin 34780 | -4/Hub_04(d) | Destroyed 11 combat bots 34845 | -4/Hub_04(d) | Network Hub disabled 34874 | -4/Hub_04(d) | Spotted Lightning 34892 | -4/Hub_04(d) | Spotted Lightning 34892 | -4/Hub_04(d) | Spotted Lightning 34892 | -4/Hub_04(d) | Spotted Lightning 34915 | -4/Hub_04(d) | Destroyed Lightning 34929 | -4/Hub_04(d) | Found Prototype Energy Cannon 34951 | -4/Hub_04(d) | Destroyed Lightning 34961 | -4/Hub_04(d) | Found Prototype Device 34961 | -4/Hub_04(d) | Identified Exp. Phase Shifter 34969 | -4/Hub_04(d) | Destroyed Lightning 35006 | -4/Hub_04(d) | Destroyed Lightning 35008 | -4/Hub_04(d) | Spotted Lightning 35008 | -4/Hub_04(d) | Spotted Lightning 35026 | -4/Hub_04(d) | Destroyed Lightning 35042 | -4/Hub_04(d) | Destroyed Lightning 35046 | -4/Hub_04(d) | Found Prototype Device 35046 | -4/Hub_04(d) | Identified EM Dispersion Field 35050 | -4/Hub_04(d) | Found Prototype Energy Cannon 35066 | -4/Hub_04(d) | Found Prototype Energy Cannon 35117 | -4/Hub_04(d) | Build established: Bothacker-Mutant 35183 | -4/Hub_04(d) | Spotted Lightning 35183 | -4/Hub_04(d) | Spotted Lightning 35192 | -4/Hub_04(d) | Spotted Lightning 35228 | -4/Hub_04(d) | Network Hub disabled 35239 | -4/Hub_04(d) | Destroyed Lightning 35249 | -4/Hub_04(d) | Disrupted transfer network 35258 | -4/Hub_04(d) | Spotted Lightning 35260 | -4/Hub_04(d) | Spotted Lightning 35261 | -4/Hub_04(d) | Found Prototype Energy Cannon 35261 | -4/Hub_04(d) | Identified EMDS (x4) 35263 | -4/Hub_04(d) | Spotted Lightning 35274 | -4/Hub_04(d) | Destroyed Lightning 35302 | -4/Hub_04(d) | Destroyed Lightning 35320 | -4/Hub_04(d) | Destroyed Lightning 35324 | -4/Hub_04(d) | Destroyed Lightning 35337 | -4/Hub_04(d) | Destroyed Lightning 35342 | -4/Hub_04(d) | Found EM Dispersion Field 35519 | -4/Hub_04(d) | Network Hub disabled 35720 | -4/Hub_04(d) | Network Hub disabled 35871 | -4/Hub_04(d) | Found Exp. Phase Shifter 35873 | -4/Hub_04(d) | Found EM Dispersion Field 35974 | -4/Hub_04(d) | Found Unknown Protection 35974 | -4/Hub_04(d) | Identified Powered Armor 36223 | -4/Hub_04(d) | Found EMDS 36272 | -4/Hub_04(d) | Entered Research 36272 | -3/Research | Evolved 2 slots: Power x1, Utility x1 36273 | -3/Research | Loaded intel: 52 non-interactive machine locations 36274 | -3/Research | Loaded intel: 18 terminal locations 36472 | -3/Research | Revision forces began assault on 0b10 36493 | -3/Research | Discovered new exit (range 5) 36500 | -3/Research | Identified exit to Research 36530 | -3/Research | Met up with Revision 17++ 36869 | -3/Research | Build established: Hauler-Assassin 36911 | -3/Research | Discovered new exit (range 30) 36945 | -3/Research | Crushed by falling debris 36972 | -3/Research | Research terminal network offline 37299 | -3/Research | Spotted Executioner 37303 | -3/Research | Spotted Striker 37304 | -3/Research | Destroyed Striker 37531 | -3/Research | Spotted Executioner 37537 | -3/Research | Discovered new exit (range 27) 37556 | -3/Research | Destroyed Executioner 37714 | -3/Research | Spotted Striker 37722 | -3/Research | Destroyed Striker 37743 | -3/Research | Destroyed 9 combat bots 37949 | -3/Research | Spotted Striker 37952 | -3/Research | Spotted Executioner 37966 | -3/Research | Destroyed Executioner 37970 | -3/Research | Destroyed Striker 37991 | -3/Research | Spotted Striker 38030 | -3/Research | Spotted Striker 38036 | -3/Research | Destroyed Striker 38149 | -3/Research | Spotted Striker 38151 | -3/Research | Spotted Striker 38160 | -3/Research | Destroyed Striker 38182 | -3/Research | Destroyed Striker 38226 | -3/Research | Spotted Striker 38228 | -3/Research | Spotted Striker 38231 | -3/Research | Destroyed Striker 38233 | -3/Research | Destroyed Striker 38265 | -3/Research | Identified exit to Quarantine 38287 | -3/Research | Entered Quarantine 38369 | -3/Quarantine | Found Alien Artifact 38436 | -3/Quarantine | Repaired Centrium Wheel 38457 | -3/Quarantine | Build established: Hauler-Mutant 38469 | -3/Quarantine | Repaired Centrium Wheel 38492 | -3/Quarantine | Repaired Lrn. Sensor Array 38522 | -3/Quarantine | Repaired System Restoration Module 38539 | -3/Quarantine | Repaired Hcp. Storage Unit 38553 | -3/Quarantine | Repaired Hcp. Storage Unit 38753 | -3/Quarantine | Identified Transdimensional Reconstructor 38753 | -3/Quarantine | Identified Phase Redirector 38789 | -3/Quarantine | Discovered exit to Research (range 8) 39547 | -3/Quarantine | Scanned by Researcher 39570 | -3/Quarantine | Found Phase Armor 39768 | -3/Quarantine | Met incapacitated Sigix Warrior 39768 | -3/Quarantine | Lockdown squad dispatched 40059 | -3/Quarantine | Spotted Lightning 40264 | -3/Quarantine | Spotted Lightning 40462 | -3/Quarantine | Found Subatomic Replicator 40768 | -3/Quarantine | Found Stasis Generator 40859 | -3/Quarantine | Repaired Centrium Wheel 40892 | -3/Quarantine | Repaired Nanoactuators? 41023 | -3/Quarantine | Repaired Centrium Medium Armor Plating 41091 | -3/Quarantine | Spotted Fortress 41208 | -3/Quarantine | Discovered new exit (range 6) 41214 | -3/Quarantine | Identified exit to Section 7 41218 | -3/Quarantine | Entered Section 7 41480 | -3/Section 7 | Scanned by Researcher 41537 | -3/Section 7 | Found Integrity Redistributor 41749 | -3/Section 7 | Intercept squad dispatched 41755 | -3/Section 7 | Spotted Tracker 41763 | -3/Section 7 | Destroyed Tracker 41771 | -3/Section 7 | Found Prototype Processor 41771 | -3/Section 7 | Identified Exp. Targeting Computer 41780 | -3/Section 7 | Spotted Combat Programmer 41801 | -3/Section 7 | Destroyed Combat Programmer 41808 | -3/Section 7 | Found Prototype Energy Gun 41808 | -3/Section 7 | Identified Immobilizer 41851 | -3/Section 7 | Found Integrity Redistributor 42303 | -3/Section 7 | Spotted B-86 Titan 42311 | -3/Section 7 | Destroyed B-86 Titan 42330 | -3/Section 7 | Found Hvy. Reflective Plating 42337 | -3/Section 7 | Discovered exit to Research (range 8) 42464 | -3/Section 7 | Intercept squad dispatched 42466 | -3/Section 7 | Spotted Tracker 42473 | -3/Section 7 | Destroyed Tracker 42473 | -3/Section 7 | Spotted Tracker 42475 | -3/Section 7 | Spotted Tracker 42477 | -3/Section 7 | Spotted Combat Programmer 42484 | -3/Section 7 | Spotted Combat Programmer 42486 | -3/Section 7 | Spotted Combat Programmer 42504 | -3/Section 7 | Core integrity fell below 50% 42510 | -3/Section 7 | System corruption reached 10% 42534 | -3/Section 7 | Core integrity fell below 20% 42543 | -3/Section 7 | Lost 6 parts (2p3u1w) 42546 | -3/Section 7 | Destroyed by Combat Programmer with EMDS Last Messages --------------- 42509_ Tracker destroyed. 42509_ Penetrated by EMDS Slug. 42509_ Relay Coupler [NC] destroyed. 42511_ Penetrated by EMDS Slug. 42511_ Rnf. Antimatter Reactor destroyed. 42512_ Penetrated by EMDS Slug. 42512_ Critical hit. 42512_ Rnf. Antimatter Reactor destroyed. 42514_ Penetrated by EMDS Slug. 42515_ EMDS Slug penetrates Combat Programmer. 42517_ Penetrated by EMDS Slug. 42520_ Tracker suffers critical hit. 42520_ Penetrated by EMDS Slug. 42521_ NV&QD&PA9Y4<7&RQCMV I/WZ2 42521_ Tracker system terminally corrupted. 42522_ Penetrated by EMDS Slug. 42524_ EMDS Slug penetrates Wall. 42525_ Penetrated by EMDS Slug. 42546_ System corrupted: Substantial component data lost. 42546_ Penetrated by EMDS Slug. Map ----- +----------------------------------------------------+ | | | | | | | | | | | | | | | | | | | | | | | ?????????????????????????????????????????????????? | | ?????????????????????????????????????????????????? | | ?????????????????????#####???????????????????????? | | ?????????????########=## #######?????????????????? | | ??############ *%!# #?????????????????? | | ??# """T""" ## [= # #?????????????????? | | ### """ """ ## = # #?????????????????? | | # ## ! = ! # ! #?????????????????? | | # " """]]# != # " #???############### | | # """ """ ## # """#???#"""""""""" | | # """ """ ## [# R"#???#" | | # =% ## %+= """#???#" | | # [ ## ! *#= #?###" | | ###+###############+####p#######T# | | +?????????# p @=!= % | | ##?????????# %! !%p%! ! | | #??????????# ################ | | #????????????????????????????#" | | #?????????????????????????????? | | #?????????????????????????????? " | | #?????????????????????????????? """ | | ##" ^ ""??????????????????????????? ??? | | ### ^^ "T??????????????????????????? "?? | | #?# " ???????????????????????????? ? | | #?# ^ ???????????????????????????? """"?? | | #?# ^^ ]]??????????????????????????? "????? | | #?? ]]??????????????????????????? "????? | | #?? ???????????????????????????? ????? | | #?? ??????????????????????????????? ????????? | | #?? ??????????????????????????????????????????? | | #???????????????????????????????????????????????? | | #???????????????????????????????????????????????? | | ????????????????????????????????????????????????? | | ?????????????????????????????????????????????????? | | ?????????????????????????????????????????????????? | | ?????????????????????????????????????????????????? | | ?????????????????????????????????????????????????? | | ?????????????????????????????????????????????????? | | ?????????????????????????????????????????????????? | +----------------------------------------------------+ Best States ------------- Heat Dissipation 90 Coolant Potential 100 Energy Generation 45 Energy Capacity 1390 Matter Stores 300 Matter Capacity 300 Sight Range 16 Robot Scan Range 20 Terrain Scan Range 30 Terrain Scan Density 210 EM Shielding 4 Corruption Prevention 20 Armor Coverage 2025 Resistance: KI 50 Resistance: TH 50 Resistance: EX 20 Resistance: EM 100 Resistance: I 20 Resistance: S 20 Resistance: P 20 Core Shielding 30 Melee Speed Boost 30 Phase Shifting 20 Evasion (%) 60 Core Analysis 10 Recoil Reduction 2 Offensive Hacking 14 Defensive Hacking 14 Item Schematics ----------------- Hcp. Storage Unit | -10/Materials | Hacked Arm. Huge Wheel | -7/Factory | Scanalyzed Adv. EMP Blaster | -7/Lower Caves | Hacked Combat Drone Bay | -7/Data Miner | Free Lgt. Regenerative Plating | -7/Data Miner | Free Exp. Flexi-carbon Leg | -7/Data Miner | Free Cmb. Gravmag System | -7/Data Miner | Free Exp. Cesium-ion Thruster | -7/Data Miner | Free Exp. Terrain Scanner | -7/Data Miner | Free Tactical Coordination Suite | -7/Data Miner | Free Exp. Transmission Jammer | -7/Data Miner | Free Exp. ECM Suite | -7/Data Miner | Free Plasma Sword | -7/Data Miner | Free Hrd. Heavy Armor Plating | -5/Factory | Scanalyzed Assault Drone Bay | -5/Zhirov | Free Exp. Heat Sink | -5/Zhirov | Free Exp. Optical Array | -5/Zhirov | Free Imp. Arc Thrower | -5/Zhirov | Free EM Dispersion Field | -3/Quarantine | Scanalyzed Exp. Phase Shifter | -3/Quarantine | Scanalyzed Robot Schematics ------------------ S-27 Virus | -7/Data Miner | Free G-50 Soldier | -7/Data Miner | Free L-41 Fighter | -7/Data Miner | Free X-72 Disruptor | -7/Data Miner | Free I-36 Angel | -7/Data Miner | Free I-47 Archangel | -7/Data Miner | Free Fabricated ------------ Quantum Reactor | x2 | -5/Factory | Preloaded Exp. Terrain Scanner | x1 | -4/Factory Alien Tech Used ----------------- Integrated Dissipator Phase Armor Stasis Generator Achievements -------------- Watch This! Challenges ------------ None Game ------ Seed AntimissileLightSuite Manual? 0 Play Time 06:59:23 Cumulative 201.8 hours Start 2019.11.12 @ 04:28:54 End 2019.11.13 @ 05:18:16 Sessions 7 Manual Loads 0 Difficulty Adventurer Special Mode None Game No. 175 Rogue 157 Adventurer 9 Explorer 0 Win Type - Total 3 Types 2/0/0/1/0/0/0 Lore% 65 Gallery% 82 Achievement% 65 Wizard Run 0 Options --------- ASCII 0 Keyboard 1 Movement Numpad Keybinds 0 Fullscreen 2 Font 18/SmallcapsGlow Map View 76x50 Tactical HUD 1 Map Filters NONE Filters NONE Steam 1 RUN: e7bc7b97-ab12-41ee-89c5-d4c88b8b7328